Cogmind - Beta 17.1 @@@ ROGUE MODE // 2026.08.29 @ 22:28:49 Player: Cereal Killer Result: Destroyed by G-73 Enforcer with Heavy Laser Performance ------------- Evolutions (9) 4500 Regions Visited (28) 5600 Robots Destroyed (230) 1150 Value Destroyed (11061) 11061 Prototype IDs (80) 1600 Alien Tech Used (0) 0 Bonus (12779) 12779 TOTAL SCORE: 36690 Bonus ------- High Alert Combat Kills 745 Follower Combat Kills 2544 Entered Garrisons 200 Network Hubs Disabled 600 Aligned with FarCom 300 Met Imprinter 300 Acquired ECA 300 Met Zhirov 300 Met Warlord at Base 500 MAIN.C Attacked Warlord 500 Warlord Defense Kills 1430 MAIN.C Attacked Proxy Base 500 Built Enhanced Grunts 300 A7 Reached Mainframe 300 Met R17 at Cetus 500 Read Decrypted Archives 300 Met Warlord at Research 2000 Invited to Help at Command 2000 Friendly Fire -840 Cogmind --------- Core Integrity 0/1600 Matter 131/300 Energy 99/100 System Corruption 20% Temperature Cool (18) Movement Core (50) Location -1/Command Parts ------- > --- POWER (2) -------- (None) > --- PROPULSION (9) --- (None) > --- UTILITY (11) ----- (None) > --- WEAPON (3) ------- (None) > --- INVENTORY (5) ---- High-density Centrium Wheel Advanced Coolant Injector Enhanced Hardcell Cannon Improved Plasma Cutter Force Lance Peak State ------------ > --- POWER ------------ Enhanced Fission Core Particle Reactor > --- PROPULSION ------- Cooled Nuclear Pulse Thruster Q-thruster Q-thruster Q-thruster Q-thruster Improved Diametric Drive Cooled Impulse Thruster Impulse Thruster Array > --- UTILITY ---------- Experimental Cooling System Medium Storage Unit Experimental Optical Array Advanced Signal Interpreter Experimental Core Analyzer Improved Transmission Jammer Advanced Reaction Control System Advanced Cloaking Device Improved Hacking Suite Improved Hacking Suite Improved System Shield > --- WEAPON ----------- Advanced Datajack Centrium Greatsword > --- INVENTORY -------- Cooled Antimatter Reactor High-density Centrium Wheel Advanced Coolant Injector Advanced Force Booster Advanced Phase Shifter Enhanced Nova Cannon Enhanced Hardcell Cannon Improved Plasma Cutter Force Lance [Rating: 187] Favorites ----------- Power Reinforced Ion Engine Engine Reinforced Ion Engine Power Core Neutrino Core Reactor Light Antimatter Reactor Propulsion Armored Wheel Treads Light Treads Leg Thunder Leg Wheel Armored Wheel Hover Unit Antigrav System Flight Unit Q-thruster Utility Huge Storage Unit Device Improved Heat Sink Storage Huge Storage Unit Processor Advanced Targeting Computer Hackware Experimental System Shield Protection Layered Medium Armor Plating Weapon Magnetic Acceleration Cannon Energy Gun Cooled Pulse Rifle Energy Cannon Plasma Cannon Ballistic Gun High-powered Shotgun Ballistic Cannon Magnetic Acceleration Cannon Launcher Mini Grenade Launcher Special Weapon Improved Plasma Cutter Slashing Weapon Phasing Sabre Piercing Weapon Lance Special Melee Weapon Advanced Datajack Build | -11 -10 -10 -10 -9 -8 -8 -8 -7 -7 -7 -7 -6 -6 -6 -6 -6 -6 -5 -5 -5 -5 -4 -4 -4 -3 -2 -1 -1 ------- Run | Yrd Mat Min Exi Min Mat Gar Mat Fac Low Low Zio Pro Fac Ext Cet Arc Hub Fac Upp Upp War Pro Fac Arm Res Res Acc Com Slots Evolved 18 | . . . . . 4 . . 2 . . . . 2 . . . . 2 . . . . 2 . 2 2 2 . Power 1 | . . . . . . . . 1 . . . . . . . . . . . . . . . . . . . . Propulsion 7 | . . . . . . . . . . . . . 1 . . . . 2 . . . . 2 . 2 . . . Utility 9 | . . . . . 4 . . 1 . . . . . . . . . . . . . . . . . 2 2 . Weapon 1 | . . . . . . . . . . . . . 1 . . . . . . . . . . . . . . . Parts Attached 271 | 5 4 . . 1 4 26 9 10 7 4 5 6 8 11 6 3 14 22 . . 11 6 27 32 28 10 . 12 Power 39 | . 1 . . . 1 5 . 1 2 2 . 3 1 2 2 1 1 3 . . 2 1 3 4 3 . . 1 Engine 13 | . 1 . . . 1 3 . 1 1 . . 2 . 1 . . . 1 . . . . 1 . 1 . . . Core 13 | . . . . . . 2 . . 1 2 . . 1 1 . . 1 1 . . 1 . 1 1 1 . . . Reactor 13 | . . . . . . . . . . . . 1 . . 2 1 . 1 . . 1 1 1 3 1 . . 1 Propulsion 67 | 2 . . . . . 6 1 . 1 . . . 3 1 . 2 3 8 . . 1 1 12 12 6 2 . 6 Treads 6 | . . . . . . 4 . . . . . . . . . . 1 . . . 1 . . . . . . . Leg 10 | . . . . . . . . . . . . . . . . . . . . . . . 9 1 . . . . Wheel 24 | 2 . . . . . 2 1 . 1 . . . 3 1 . 2 2 5 . . . . 2 3 . . . . Hover 3 | . . . . . . . . . . . . . . . . . . 1 . . . 1 . . . 1 . . Flight 24 | . . . . . . . . . . . . . . . . . . 2 . . . . 1 8 6 1 . 6 Utility 97 | 1 2 . . . 2 7 4 5 3 2 5 3 2 2 1 . 5 8 . . 5 3 6 11 15 3 . 2 Device 45 | . . . . . 1 1 1 3 3 1 . 2 1 1 . . 3 4 . . 3 2 3 6 7 1 . 2 Storage 7 | 1 2 . . . . . . . . 1 . . . . . . . 1 . . . . 1 . 1 . . . Processor 19 | . . . . . . . 1 1 . . 4 . . . . . 1 1 . . 1 1 2 4 1 2 . . Hackware 6 | . . . . . . . . . . . 1 . . . . . . . . . . . . . 5 . . . Protection 20 | . . . . . 1 6 2 1 . . . 1 1 1 1 . 1 2 . . 1 . . 1 1 . . . Artifact . | . . . . . . . . . . . . . . . . . . . . . . . . . . . . . Weapon 68 | 2 1 . . 1 1 8 4 4 1 . . . 2 6 3 . 5 3 . . 3 1 6 5 4 5 . 3 Energy Gun 14 | 2 . . . . . 1 . 2 1 . . . . 1 1 . 1 1 . . 2 . . . 2 . . . Energy Cannon 11 | . . . . . . 2 1 1 . . . . 2 1 . . . . . . 1 . 1 2 . . . . Ballistic Gun 11 | . 1 . . . 1 2 . . . . . . . 2 1 . . 1 . . . . 3 . . . . . Ballistic Cannon 16 | . . . . 1 . . 3 . . . . . . 2 . . 2 . . . . . 2 3 1 1 . 1 Launcher 4 | . . . . . . 2 . 1 . . . . . . . . 1 . . . . . . . . . . . Special Weapon 2 | . . . . . . . . . . . . . . . 1 . . . . . . . . . . . . 1 Impact Weapon . | . . . . . . . . . . . . . . . . . . . . . . . . . . . . . Slashing Weapon 5 | . . . . . . 1 . . . . . . . . . . 1 1 . . . . . . . 2 . . Piercing Weapon 3 | . . . . . . . . . . . . . . . . . . . . . . 1 . . 1 1 . . Special Melee Weapon 2 | . . . . . . . . . . . . . . . . . . . . . . . . . . 1 . 1 Unidentified Prototypes 31 | . . . . . . . . 1 1 . 3 . 1 . 2 . 2 3 . . 4 1 . 1 6 6 . . Parts Lost 150 | . . . . . 3 16 1 1 7 7 . . 7 8 1 3 22 . . . 10 1 9 24 . . 2 28 Power 23 | . . . . . 1 3 . . 1 3 . . 1 1 . 1 3 . . . 2 . 1 3 . . . 3 Propulsion 49 | . . . . . . 5 . . 1 . . . 2 1 . 1 6 . . . 5 1 4 11 . . . 12 Utility 43 | . . . . . 1 3 1 1 4 2 . . 1 2 . 1 6 . . . 1 . 3 6 . . 1 10 Weapon 35 | . . . . . 1 5 . . 1 2 . . 3 4 1 . 7 . . . 2 . 1 4 . . 1 3 Highest Loss Streak 24 | . . . . . 3 4 1 1 6 4 . . 4 6 1 3 11 . . . 6 1 3 11 . . 2 24 To Critical Strikes 2 | . . . . . . . . . . . . . . . 1 . . . . . . . . 1 . . . . Average Backups 16 | 3 6 10 10 16 17 22 23 22 21 18 21 22 22 21 22 23 18 5 14 14 13 2 5 7 6 9 9 9 Power 1 | 1 1 1 1 1 1 3 4 3 2 . . . 1 2 2 3 2 1 2 2 1 1 . . . 1 1 . Propulsion 1 | 1 2 4 4 4 4 1 2 2 1 1 2 3 3 3 3 4 2 . . . . . . 1 1 2 1 1 Utility 6 | . 1 2 2 5 5 8 6 7 7 6 9 9 8 8 9 9 7 1 10 10 8 . 1 2 3 3 3 1 Weapon 5 | 1 2 3 3 5 6 7 9 9 8 10 9 7 6 4 5 5 5 2 2 2 2 1 1 2 . . 2 3 Tool/Special . | . . . . . . . . . . . . . . . . . . . . . . . . . . . . . Unused Backups 66 | . 1 . 2 . 1 2 2 2 2 . 3 7 7 1 . . 3 . . . 8 . 3 3 12 4 . 3 Power 7 | . 1 . . . . 1 . . 1 . . . 1 . . . 1 . . . 1 . . 1 . . . . Propulsion 11 | . . . . . . . . . . . 1 . 3 1 . . . . . . . . . . 1 4 . 1 Utility 28 | . . . . . 1 . 2 . 1 . 1 3 2 . . . 2 . . . 7 . 2 . 7 . . . Weapon 16 | . . . 2 . . 1 . 1 . . 1 4 1 . . . . . . . . . 1 1 3 . . 1 Tool/Special 4 | . . . . . . . . 1 . . . . . . . . . . . . . . . 1 1 . . 1 Average Slot Usage (%) 83 | . 70 85 85 85 67 78 89 89 88 77 79 84 84 86 85 86 82 58 93 94 95 43 83 69 91 91 90 76 Engine 3 | . 13 14 14 14 9 3 9 15 13 3 . 2 . 2 4 . . 3 5 5 3 . . . . . . . Core 3 | . . . . . . 4 . . 1 5 7 7 4 9 . . . 1 . . . . . 3 2 4 4 3 Reactor 2 | . . . . . . . . . . . . 4 6 . 6 13 9 1 5 5 5 . 4 5 3 4 4 3 Treads 1 | . . . . . . 9 . . . . . . . . . . . . . . . . . . . . . . Leg 2 | . . . . . . . . . . . . . . . . . . . . . . . 24 10 . . . . Wheel 9 | . 19 28 28 28 18 7 9 7 6 7 7 7 12 11 13 13 15 11 28 29 26 . 1 . . . . . Flight 5 | . . . . . . . . . . . . . . . . . . 5 . . . . 1 12 36 34 32 30 Device 10 | . . . . . 8 9 9 12 14 21 9 7 9 12 6 6 6 8 11 11 11 12 10 8 13 12 14 14 Storage 6 | . 14 14 14 14 9 9 9 7 7 7 7 7 6 6 6 6 5 . 5 5 5 . 1 2 1 4 4 3 Processor 11 | . . . . . . . 4 7 15 15 25 15 13 13 13 13 12 14 17 17 17 22 23 13 8 8 12 8 Hackware 2 | . . . . . . . . . . . 5 7 6 6 6 6 5 . . . . . . . 6 13 12 6 Protection 6 | . . . . . 4 16 30 22 12 . . 6 5 3 6 6 4 2 5 5 4 . . . . . . . Energy Gun 2 | . 18 14 14 14 5 . . 9 14 . . . . . 1 . 1 . 5 5 8 . . . . . . . Energy Cannon 2 | . . . . . . 6 . 1 . 7 . . 2 5 2 6 4 . . . 1 . 3 3 . . . . Ballistic Gun 2 | . 4 14 14 3 3 9 . . . . . . . 5 2 6 2 . . . . . 1 1 . . . . Ballistic Cannon 4 | . . . . 10 9 . 16 3 . 2 7 15 14 5 11 6 5 . . . . . 4 1 3 2 . . Peak Build Rating 187 | 5 7 7 12 8 11 29 45 55 54 50 63 79 86 78 95 95 91 76 67 67 94 59 119 112 149 174 187 183 Average Rating 70 | 2 5 7 7 8 10 22 41 50 51 43 55 77 78 75 86 94 79 54 66 67 77 44 104 86 137 165 184 164 On Entrance 59 | . 5 7 7 8 8 10 29 44 52 48 43 63 79 72 78 95 84 13 67 67 67 27 48 102 103 148 173 173 Avg Prop Armor Cover (%) 7 | . . . . . . . 5 . . . . . . . . . . 10 . . 6 18 3 18 1 . . . Naked Turns 15 | . . . . . . . . . . . . . . . . . . . . . . . . 8 . . . 7 Heaviest Build 158 | 9 86 86 86 88 96 119 129 142 135 116 111 144 152 140 158 158 158 62 62 62 77 6 66 68 63 66 55 74 Greatest Support 141 | 26 26 26 26 26 26 40 28 28 28 28 28 28 40 40 40 40 36 64 64 64 64 11 141 141 73 73 74 80 Greatest Overweight (x) 10 | . 3 3 3 3 3 7 7 5 4 4 3 5 4 4 3 4 10 2 . . 3 1 1 2 . . . . Average Overweight (x) 1 | . . 3 3 3 3 3 4 4 3 3 3 4 2 2 3 3 3 . . . . . . . . . . . Largest Inventory Capacity 35 | 8 25 25 25 25 25 25 25 25 25 35 25 25 25 25 25 25 25 15 15 15 15 5 10 10 10 10 10 10 Average Capacity 19 | 7 9 25 25 25 25 25 25 25 25 25 25 25 25 25 25 25 24 6 15 15 14 5 6 7 7 10 10 9 Most Carried 25 | 7 10 10 16 19 19 25 25 25 25 23 25 25 25 25 25 25 25 14 15 15 15 5 10 10 10 10 10 10 Average Carried 17 | 4 6 10 10 16 17 22 24 24 23 19 23 24 23 23 24 24 20 5 14 14 14 4 5 7 6 9 9 9 Final Capacity 25 | 8 25 25 25 25 25 25 25 25 25 25 25 25 25 25 25 25 5 15 15 15 5 5 10 5 10 10 10 5 Final Carried 25 | 5 10 10 13 19 19 25 25 25 18 22 25 25 23 23 25 22 5 14 14 15 5 5 10 5 10 10 9 5 Class Distribution -------------------- 50% | Mutant 13% | Scavenger-Mutant 9% | Hacker-Sprinter 6% | Scavenger-Gunner 6% | Gunner 3% | Derelict-Mutant Dominant Class ---------------- Mutant | -10/Materials Mutant | -10/Mines Mutant | -10/Exiles Mutant | -9/Mines Mutant | -8/Materials Scavenger-Mutant | -8/Garrison Mutant | -8/Materials Mutant | -7/Factory Mutant | -7/Lower Caves Mutant | -7/Lower Caves Mutant | -7/Zion Mutant | -6/Proximity Caves Gunner | -6/Factory Scavenger-Gunner | -6/Extension Commander-Gunner | -6/Cetus Commander-Gunner | -6/Archives Scavenger-Gunner | -6/Hub_04(d) Mutant | -5/Factory Mutant | -5/Upper Caves Mutant | -5/Upper Caves Scavenger-Mutant | -5/Warlord Mutant | -4/Proximity Caves Derelict-Mutant | -4/Factory Scavenger-Gunner | -4/Armory Hacker-Sprinter | -3/Research Hacker-Sprinter | -2/Research Hacker-Sprinter | -1/Access Scavenger-Sprinter | -1/Command Resources | -11 -10 -10 -10 -9 -8 -8 -8 -7 -7 -7 -7 -6 -6 -6 -6 -6 -6 -5 -5 -5 -5 -4 -4 -4 -3 -2 -1 -1 ----------- Run | Yrd Mat Min Exi Min Mat Gar Mat Fac Low Low Zio Pro Fac Ext Cet Arc Hub Fac Upp Upp War Pro Fac Arm Res Res Acc Com Matter Collected 7171 | 203 118 . . 30 67 1080 361 141 280 208 64 524 411 414 211 . 521 421 . 49 90 75 638 525 516 170 39 15 Remotely . | . . . . . . . . . . . . . . . . . . . . . . . . . . . . . Salvage Created 10996 | . 165 . . . 164 1546 398 209 633 347 . 440 640 843 148 . 1123 457 . 6 720 . 1021 375 1253 385 39 84 Parts 459 | . 6 . . . 6 88 20 11 31 13 . 16 19 30 3 . 55 12 . . 27 . 46 18 40 11 3 4 Haulers Intercepted 22 | . . . . . . . 2 . . . . . 1 . . . 3 4 . . . . 2 . 7 3 . . Recyclers Shooed 7 | . 1 . . . 1 . 1 . . . . . . . . . . 1 . . . . 2 . 1 . . . Parts Field Recycled . | . . . . . . . . . . . . . . . . . . . . . . . . . . . . . Retrieved Matter . | . . . . . . . . . . . . . . . . . . . . . . . . . . . . . Parts Self-Destructed 109 | . . . . . . . . . 32 11 . 59 . . . . . . . 7 . . . . . . . . Prevented 62 | . . . . . . . . . . . . 60 . . . . . . 2 . . . . . . . . . Parts Restored 1 | . . . . . . . . . . . . . . 1 . . . . . . . . . . . . . . Broken 1 | . . . . . . . . . . . . . . 1 . . . . . . . . . . . . . . Kills | -11 -10 -10 -10 -9 -8 -8 -8 -7 -7 -7 -7 -6 -6 -6 -6 -6 -6 -5 -5 -5 -5 -4 -4 -4 -3 -2 -1 -1 ------- Run | Yrd Mat Min Exi Min Mat Gar Mat Fac Low Low Zio Pro Fac Ext Cet Arc Hub Fac Upp Upp War Pro Fac Arm Res Res Acc Com Combat Hostiles Destroyed 158 | . 1 . . . 4 36 7 4 18 11 . 11 5 17 3 . 11 . . . 10 . 10 9 . 1 . . Melee 4 | . . . . . . . . . . . . . . . . . . . . . . . 1 2 . 1 . . Guns 54 | . 1 . . . 2 17 . 3 10 . . . . 3 1 . 6 . . . 7 . 4 . . . . . Cannons 70 | . . . . . 2 10 5 . . 6 . 11 5 12 2 . 4 . . . 3 . 3 7 . . . . AOE 23 | . . . . . . 7 1 . 8 5 . . . . . . 1 . . . . . 1 . . . . . Classes Destroyed 24 | . 4 . . . . 8 1 . . . . 3 1 1 . . 2 . . 1 1 . . 1 1 . . . Worker 10 | . . . . . . . . . . . . . 1 . . . 5 . . . . . 3 . 1 . . . Builder 7 | . 1 . . . . . . . . . . . . 1 . . 4 . . . . . . . 1 . . . Tunneler 1 | . . . . . . . . . . . . . . . . . 1 . . . . . . . . . . . Hauler 22 | . . . . . . . 2 . . . . . 1 . . . 3 4 . . . . 2 . 7 3 . . Recycler 11 | . 1 . . . 1 . . . . . . . 3 . . . 2 . . . . . 2 . 2 . . . Minesweeper 1 | . . . . . . . . . . . . . . . . . . . . 1 . . . . . . . . Mechanic 3 | . . . . . . . . . . . . 1 . . . . . 1 . . 1 . . . . . . . Operator 1 | . . . . . . . . . . . . . . . . . . . . . . . . . 1 . . . Drone 1 | . . . . . . . . . . . . . . . . . . . . . . . . 1 . . . . Watcher 14 | . 1 . . . . . . 1 . . . . . . . . 1 . . . . . 2 . 5 1 1 2 Swarmer 29 | . . . . . . 7 . . 7 4 . 4 . 3 . . . . . . . . 4 . . . . . Cutter 5 | . . . . . . 2 . . . . . . . . . . 3 . . . . . . . . . . . Grunt 44 | . 1 . . . 4 8 2 . 3 5 . 4 2 8 . . 3 . . . 4 . . . . . . . Brawler 7 | . . . . . . 2 . . 3 . . . . . . . . . . . 2 . . . . . . . Duelist 7 | . . . . . . 1 1 . 2 2 . 1 . . . . . . . . . . . . . . . . Protector 2 | . . . . . . . . . . . . 1 . . . . . . . . 1 . . . . . . . Sentry 25 | . . . . . . 12 4 1 2 . . . 1 4 . . . . . . . . . . . 1 . . Specialist 6 | . . . . . . 2 . . . . . . . . . . . . . . . . . 4 . . . . Hunter 8 | . . . . . . 1 . 1 1 . . . 1 . . . 1 . . . 1 . 2 . . . . . Programmer 15 | . . . . . . 1 . 2 . . . 1 1 . . . 1 . . . 1 . 4 4 . . . . Heavy 1 | . . . . . . . . . . . . . . . . . 1 . . . . . . . . . . . Behemoth 2 | . . . . . . . . . . . . . . 2 . . . . . . . . . . . . . . Cetus Guard 3 | . . . . . . . . . . . . . . . 3 . . . . . . . . . . . . . Lightning 2 | . . . . . . . . . . . . . . . . . 2 . . . . . . . . . . . Striker 2 | . . . . . . . . . . . . . . . . . . . . . 2 . . . . . . . Savage 1 | . . . . . . . . . . 1 . . . . . . . . . . . . . . . . . . Mutant 1 | . . . . . . . . . . . . 1 . . . . . . . . . . . . . . . . Best Kill Streak 13 | . 2 . . . 2 7 4 2 10 4 . 4 3 4 2 . 13 2 . 1 8 . 4 3 3 3 1 2 Combat Bots Only 10 | . 1 . . . 2 7 4 2 10 4 . 4 2 3 2 . 3 . . . 7 . 4 3 . 1 . . Max Kills in Single Turn 10 | . 1 . . . 1 2 1 1 3 2 . 1 1 2 1 . 10 1 . 1 2 . 2 1 1 1 1 1 Gunslinging . | . . . . . . . . . . . . . . . . . . . . . . . . . . . . . Exploded 3 | . . . . . . 2 1 . 3 1 . . . . . . 1 . . . . . 1 . . . . . Melee 1 | . . . . . . . . . . . . . . . . . . . . . . . 1 1 . 1 . . Uniques/NPCs Destroyed . | . . . . . . . . . . . . . . . . . . . . . . . . . . . . . Combat | -11 -10 -10 -10 -9 -8 -8 -8 -7 -7 -7 -7 -6 -6 -6 -6 -6 -6 -5 -5 -5 -5 -4 -4 -4 -3 -2 -1 -1 -------- Run | Yrd Mat Min Exi Min Mat Gar Mat Fac Low Low Zio Pro Fac Ext Cet Arc Hub Fac Upp Upp War Pro Fac Arm Res Res Acc Com Hostile Shots Fired 2139 | . 3 . . 6 24 228 28 80 130 50 . 74 72 253 6 . 170 . 24 4 154 8 99 320 11 . 49 346 Missed 768 | . 2 . . 2 8 63 16 24 52 8 . 31 19 81 2 . 29 . 6 2 45 5 26 122 6 . 31 188 Hits 1371 | . 1 . . 4 16 165 12 56 78 42 . 43 53 172 4 . 141 . 18 2 109 3 73 198 5 . 18 158 Melee 43 | . . . . . . 11 . . 7 7 . . . . . . 2 . 2 . 2 . . 1 . . . 11 Projectile 1328 | . 1 . . 4 16 154 12 56 71 35 . 43 53 172 4 . 139 . 16 2 107 3 73 197 5 . 18 147 AOE 16 | . . . . 10 . . . . . . . . . . . . 4 . . . . . 1 . . . . 1 Critical Strikes 66 | . . . . . 2 1 1 3 1 2 . 1 2 4 1 . 18 . 2 2 5 . 3 7 . 1 . 10 Part Disruptions 6 | . . . . . . . . . . . . . . . . . . . . . . . 2 3 . . . 1 Damage Taken 26652 | . 43 . . 278 257 2431 211 756 1239 820 . 729 756 2153 66 498 4153 . 399 44 2444 48 2048 3094 47 67 360 3711 Core 4753 | . 10 . . 135 32 310 15 85 213 141 . 50 40 242 . . 452 . 18 . 537 23 190 623 . 22 . 1615 Absorbed by Shields 663 | . . . . . . . . . . 108 . . . . 63 . . . . . 163 . . 93 . . . 236 Reduced by Siege Mode 274 | . . . . . . . . . . . . . . . . . 274 . . . . . . . . . . . Regen/Repaired (Parts) 243 | . . . . . . . . . . . . 156 . . . . . . . . 38 . . . 49 . . . Core Remaining (%) 54 | 100 . . . 42 . . 35 . . . . 30 . . . . 13 . . . . 42 . 29 100 98 . . Volleys Fired 628 | . 17 . . 5 28 126 31 31 31 29 . 37 43 54 14 . 62 . . . 24 . 38 34 . 5 . 19 Largest 3 | . 2 . . 2 2 2 2 2 2 2 . 2 3 3 3 . 3 . . . 3 . 3 3 . 1 . 1 Hottest 240 | . 70 . . 80 80 125 88 88 50 160 . 88 168 188 123 . 204 . . . 240 . 215 231 . 58 . 58 Shots Fired 1201 | . 28 . . 10 56 209 54 52 58 47 . 74 84 126 31 . 146 . 1 . 61 . 78 63 1 5 . 17 Gun 448 | . 28 . . 5 28 114 . 39 53 7 . . . 34 6 . 56 . 1 . 38 . 29 10 . . . . Cannon 720 | . . . . 5 28 81 50 12 . 34 . 74 84 92 25 . 87 . . . 23 . 49 53 1 5 . 17 Launcher 33 | . . . . . . 14 4 1 5 6 . . . . . . 3 . . . . . . . . . . . Special . | . . . . . . . . . . . . . . . . . . . . . . . . . . . . . Kinetic 660 | . 11 . . 5 48 112 50 5 . 8 . 74 59 56 20 . 85 . . . . . 55 49 1 5 . 17 Thermal 486 | . 17 . . 5 8 83 . 46 53 33 . . 25 62 11 . 58 . 1 . 47 . 23 14 . . . . Explosive 18 | . . . . . . 3 . 1 5 6 . . . . . . 3 . . . . . . . . . . . Electromagnetic 23 | . . . . . . 11 4 . . . . . . 8 . . . . . . . . . . . . . . Entropic 14 | . . . . . . . . . . . . . . . . . . . . . 14 . . . . . . . Robot Hit Streak 17 | . 5 . . 4 7 10 8 6 13 12 . 13 17 12 6 . 11 . . . 13 . 8 4 . . . . Robot Miss Streak 8 | . 2 . . 1 2 5 2 3 4 2 . 3 2 5 3 . 8 . . . 5 . 4 4 . . . . Penetration Max 1 | . . . . . . . . . . . . . . . . . 1 . . . . . 1 . . . . . Secondary Targets 4 | . . . . . . . . . 3 . . . . . . . . . . . . . 1 . . . . . Max Gunslinging Chain 1 | . . . . . . . . . 1 . . . . . . . . . . . . . 1 . . . . . Shots Hit Robots 825 | . 20 . . 8 39 138 41 27 42 35 . 43 46 79 21 . 90 16 . 2 39 . 54 36 30 13 3 3 Core Hits 434 | . 7 . . 2 11 71 11 9 34 21 . 22 19 48 9 . 73 5 . 1 28 . 28 13 16 5 1 . Critical Kills 13 | . . . . . . 2 . . . . . . . 2 1 . 4 . . . . . 4 . . . . . Critical Parts Destroyed 8 | . . . . . . 1 . . . . . . . . . . . . . . . . 7 . . . . . Critical Strikes 60 | . 2 . . 1 3 6 1 3 1 1 . 6 . 2 2 . 4 2 . . . . 12 7 5 2 . . Burn 8 | . 2 . . 1 2 . . 2 1 . . . . . . . . . . . . . . . . . . . Meltdown 4 | . . . . . . 2 . . . . . . . 2 . . . . . . . . . . . . . . Destroy 17 | . . . . . . 1 . . . . . . . . 1 . 4 . . . . . 11 . . . . . Blast 18 | . . . . . 1 . 1 1 . 1 . 6 . . 1 . . . . . . . 1 6 . . . . Sever 7 | . . . . . . 3 . . . . . . . . . . . 2 . . . . . . . 2 . . Impale 6 | . . . . . . . . . . . . . . . . . . . . . . . . 1 5 . . . Melee Attacks 180 | . . . . . . 12 . . . . . . . . . . 2 18 . 2 . 1 35 28 44 20 12 6 Impact . | . . . . . . . . . . . . . . . . . . . . . . . . . . . . . Slashing 57 | . . . . . . 12 . . . . . . . . . . 2 18 . 2 . . . . . 7 10 6 Piercing 118 | . . . . . . . . . . . . . . . . . . . . . . 1 35 28 44 10 . . Sneak Attacks 40 | . . . . . . . . . . . . . . . . . 2 7 . 1 . . 7 . 13 7 2 1 Combat Hostiles 1 | . . . . . . . . . . . . . . . . . . . . . . . . . . 1 . . Follow-up Attacks 2 | . . . . . . . . . . . . . . . . . . . . . . . . . . 2 . . Damage Inflicted 29333 | . 218 . . 120 575 2950 1565 648 1497 1449 . 1637 1299 2044 612 . 4294 932 . 129 2084 . 2064 1482 2460 880 89 305 Guns 6489 | . 218 . . 50 216 1264 . 537 807 137 . . . 440 63 . 1015 . . . 1502 . 161 79 . . . . Cannons 12207 | . . . . 70 359 852 1171 111 . 701 . 1637 1299 1604 549 . 1337 . . . 582 . 788 1147 . . . . Explosions 4055 | . . . . . . 476 394 . 690 611 . . . . . . 1739 . . . . . 145 . . . . . Melee 6562 | . . . . . . 358 . . . . . . . . . . 203 932 . 129 . . 970 236 2460 880 89 305 Ramming 20 | . . . . . . . . . . . . . . . . . . . . . . . . 20 . . . . Kinetic 10310 | . 64 . . 70 525 1219 1171 58 . 215 . 1637 715 880 517 . 1575 . . . . . 650 1014 . . . . Thermal 7266 | . 154 . . 50 50 897 . 590 807 623 . . 584 1094 95 . 777 . . . 1034 . 299 212 . . . . Explosive 1792 | . . . . . . 191 . . 690 611 . . . . . . 176 . . . . . 124 . . . . . Electromagnetic 2333 | . . . . . . 285 394 . . . . . . 70 . . 1563 . . . . . 21 . . . . . Impact . | . . . . . . . . . . . . . . . . . . . . . . . . . . . . . Slashing 2377 | . . . . . . 358 . . . . . . . . . . 203 932 . 129 . . . . . 361 89 305 Piercing 4185 | . . . . . . . . . . . . . . . . . . . . . . . 970 236 2460 519 . . Entropic 1050 | . . . . . . . . . . . . . . . . . . . . . 1050 . . . . . . . Highest Corruption 42 | . . . . . . 4 4 2 3 3 3 1 2 2 2 2 42 7 7 7 7 1 4 8 7 . . 20 Average Corruption 3 | . . . . . . 2 4 1 2 3 3 1 1 2 2 2 9 6 7 7 2 1 2 7 4 . . 15 Corruption Purged . | . . . . . . . . . . . . . . . . . . . . . . . . . . . . . Corruption Blocked . | . . . . . . . . . . . . . . . . . . . . . . . . . . . . . Effects 203 | . . . . . . 15 12 7 10 7 7 5 . 13 7 1 24 9 9 9 2 3 16 20 17 . . 10 Message Errors 39 | . . . . . . 4 2 2 2 3 4 . . 4 . . 3 1 1 3 . . 2 5 3 . . . Matter Fused 44 | . . . . . . 2 3 2 4 2 2 1 . . 2 . 3 3 3 1 . . 7 3 5 . . 1 Heat Flow Errors 33 | . . . . . . 1 1 2 . . . 1 . 4 1 . 4 3 1 2 . 2 5 4 2 . . . Energy Discharges 18 | . . . . . . 2 1 1 . . . 1 . 1 3 . 2 1 1 1 . . . 2 2 . . . Parts Rejected 4 | . . . . . . . . . 1 . . . . . . . 1 . . . . . . 2 . . . . Parts Fused 3 | . . . . . . . 1 . . . . . . 2 . . . . . . . . . . . . . . Data Loss (minor) 27 | . . . . . . 3 2 . 2 2 1 2 . 1 . 1 1 . 2 1 1 1 . 3 3 . . 1 Data Loss (major) 6 | . . . . . . . 2 . 1 . . . . . . . . . . . . . . 1 . . . 2 Misfires 8 | . . . . . . 3 . . . . . . . . 1 . 1 . 1 . 1 . . . 1 . . . Alerts 7 | . . . . . . . . . . . . . . 1 . . 1 1 . 1 . . 2 . 1 . . . Misdirections 9 | . . . . . . . . . . . . . . . . . 5 . . . . . . . . . . 4 Weapon Failures 5 | . . . . . . . . . . . . . . . . . 3 . . . . . . . . . . 2 Overload Shots 2 | . . . . . . . . 1 . . . . . . . . . . . . 1 . . . . . . . Overflow Damage 1031 | . . . . . 11 57 12 . . 38 . 48 22 . . . 100 110 . 59 . . 138 41 271 13 . 111 Projectiles 205 | . . . . . 11 4 12 . . 26 . 48 22 . . . . . . . . . 79 3 . . . . Explosions 131 | . . . . . . 19 . . . 12 . . . . . . 100 . . . . . . . . . . . Melee 695 | . . . . . . 34 . . . . . . . . . . . 110 . 59 . . 59 38 271 13 . 111 Knockbacks 79 | . . . . 3 13 1 7 . . 1 . 13 7 1 1 . 16 . . . . . 5 11 . . . . Impact . | . . . . . . . . . . . . . . . . . . . . . . . . . . . . . Kinetic 75 | . . . . 3 12 1 5 . . 1 . 13 7 1 1 . 16 . . . . . 4 11 . . . . Secondary 4 | . . . . . 1 . 2 . . . . . . . . . . . . . . . 1 . . . . . Self-Inflicted Damage 843 | . . . . . . 134 . . 99 115 . . . . . . 197 . . . . . 298 . . . . . Shots 20 | . . . . . . 5 . . 3 4 . . . . . . 2 . . . . . 6 . . . . . Rammed . | . . . . . . . . . . . . . . . . . . . . . . . . . . . . . Targets Rammed 2 | . . . . . . . . . . . . . . . . . . . . . . . 1 1 . . . . Kicked 2 | . . . . . . . . . . . . . . . . . . . . . . . 1 1 . . . . Crushed . | . . . . . . . . . . . . . . . . . . . . . . . . . . . . . Highest Temperature 417 | . 60 . . 90 76 327 353 184 33 269 . 162 152 321 200 . 373 258 49 92 132 126 277 417 195 7 . 330 Average Temperature 78 | . 25 . . 46 32 68 60 68 17 121 . 36 59 94 105 . 93 115 49 60 41 78 84 131 55 4 . 92 Received Heat Transfer 3994 | . 6 . . . 180 603 81 24 153 204 . 126 210 1078 . . 93 . 72 54 416 . 151 435 9 . 9 90 Effects 12 | . . . . . . 1 . . . 2 . . . . . . . . . . . . . 8 . . . 1 Energy Bleed 1 | . . . . . . . . . . . . . . . . . . . . . . . . . . . . 1 Interference 11 | . . . . . . 1 . . . 2 . . . . . . . . . . . . . 8 . . . . Siege Activations 1 | . . . . . . . . . . . . . . . . . 1 . . . . . . . . . . . Total Turns 76 | . . . . . . . . . . . . . . . . . 76 . . . . . . . . . . . Longest Duration 76 | . . . . . . . . . . . . . . . . . 76 . . . . . . . . . . . Martial Activations . | . . . . . . . . . . . . . . . . . . . . . . . . . . . . . Shielding Activations . | . . . . . . . . . . . . . . . . . . . . . . . . . . . . . Robots Disrupted 1 | . . . . . . . 1 . . . . . . . . . . . . . . . . . . . . . Combat Hostiles 1 | . . . . . . . 1 . . . . . . . . . . . . . . . . . . . . . Robots Corrupted 2 | . . . . . . . 1 . . . . . . . . . . . . . . . 1 . . . . . Combat Hostiles 2 | . . . . . . . 1 . . . . . . . . . . . . . . . 1 . . . . . Parts Fried 15 | . . . . . . 1 3 . . . . 1 . . . . 9 . . . . . 1 . . . . . Impact Corruptions 1 | . . . . . . . . . . . . . . . . . . . . . . . 1 . . . . . Robots Melted 5 | . . . . . . 2 . 1 . . . . . 2 . . . . . . . . . . . . . . Combat Hostiles 5 | . . . . . . 2 . 1 . . . . . 2 . . . . . . . . . . . . . . Parts Melted 28 | . . . . . . 7 . 4 3 4 . 1 1 6 . . 1 . . . . . 1 . . . . . Heat Transferred 12863 | . 592 . . 222 296 1534 . 1173 1628 1209 . . 1100 2137 150 . 932 . . . 1294 . 296 300 . . . . Parts Sabotaged 7 | . . . . . . . . . . . . . . . . . . . . . 5 . . 2 . . . . Parts Stolen . | . . . . . . . . . . . . . . . . . . . . . . . . . . . . . Parts Stripped . | . . . . . . . . . . . . . . . . . . . . . . . . . . . . . Power Chain Reactions 1 | . . . . . . . . . . . . . . . . . . . . . . . 1 . . . . . Alert | -11 -10 -10 -10 -9 -8 -8 -8 -7 -7 -7 -7 -6 -6 -6 -6 -6 -6 -5 -5 -5 -5 -4 -4 -4 -3 -2 -1 -1 ------- Run | Yrd Mat Min Exi Min Mat Gar Mat Fac Low Low Zio Pro Fac Ext Cet Arc Hub Fac Upp Upp War Pro Fac Arm Res Res Acc Com Maximum Alert Level 5 | . . . . . . 5 3 2 . . . . . 1 1 2 3 2 . . . . 1 2 1 1 . 2 Low Security (%) 43 | 100 100 100 . 100 100 15 . 11 . . . . 100 77 12 69 15 . . . . . 60 68 34 52 100 42 Level 1 30 | . . . . . . 7 . 82 . . . . . 22 87 16 44 51 . . . . 39 21 65 47 . 44 Level 2 8 | . . . . . . 21 . 5 . . . . . . . 14 28 48 . . . . . 10 . . . 12 Level 3 10 | . . . . . . 22 100 . . . . . . . . . 11 . . . . . . . . . . . Level 4 5 | . . . . . . 26 . . . . . . . . . . . . . . . . . . . . . . Level 5 1 | . . . . . . 6 . . . . . . . . . . . . . . . . . . . . . . High Security . | . . . . . . . . . . . . . . . . . . . . . . . . . . . . . Max Security . | . . . . . . . . . . . . . . . . . . . . . . . . . . . . . Peak Influence 1685 | . 30 . . . 70 1685 982 427 . . . . 81 330 316 544 807 441 . . . . 280 475 285 366 142 669 Initial 820 | . . . . . . 35 820 427 . . . . 81 10 152 107 183 271 . . . . . 119 192 137 47 90 Average 341 | . 7 . . . 19 816 850 267 . . . . 20 143 249 189 404 376 . . . . 128 163 213 213 80 244 Influence Increases 11846 | . 93 . . . 125 1910 500 175 390 250 . 523 202 934 344 628 910 262 60 50 490 30 755 1072 465 384 235 1059 Destroy 0b10 Robot/C 4500 | . 20 . . . 80 740 280 80 360 220 . 360 100 520 160 320 220 . . . 320 . 200 340 100 80 . . Destroy 0b10 Robot/NC 415 | . 15 . . . 5 10 25 5 . . . 10 25 15 10 . 80 25 . 5 10 . 45 5 90 20 5 10 Destroy Leader 584 | . 12 . . . 10 20 98 42 30 30 . 20 32 54 . . 56 8 . . . . 48 80 24 18 2 . Allied During Kill 1001 | . . . . . . 2 22 . . . . 58 . 217 148 285 . . . . 85 . . 182 . . . 2 Trap Triggered on 0b10 30 | . . . . . . . . 10 . . . . 10 . . . . . . . . . . . . . . 10 Successful Hack 549 | . 16 . . . . 14 2 . . . . . 2 78 . . . 14 . . . . 113 28 91 35 81 75 Disable Machine 810 | . . . . . . 15 30 30 . . . . 15 15 15 15 285 15 . . . . 150 165 30 . 30 . Anti-Garrison Action 1300 | . . . . . . 950 . . . . . . . . . . . 200 . . . . . . . 150 . . Destroy Structure 677 | . . . . . . 54 13 8 . . . . 18 20 11 8 209 . . . . . 184 62 10 21 12 47 Partial Spotted 60 | . . . . . . . . . . . . . . . . . . . . . . . . 15 30 . 15 . Lose Combat Pursuer 1920 | . 30 . . . 30 105 30 . . . . 75 . 15 . . 60 . 60 45 75 30 15 195 90 60 90 915 Influence Decreases 11177 | . 93 . . . 70 280 1245 939 514 302 . 394 309 683 349 371 880 482 255 147 347 216 511 948 588 550 172 532 Entered New Map 3317 | . . . . . . 20 865 513 66 11 . . 48 12 121 161 342 284 125 27 43 186 . 125 176 108 32 52 Time Decay 5364 | . 93 . . . 70 . 310 416 338 231 . 334 241 365 198 40 318 198 130 120 134 30 421 303 392 422 110 150 Lost Part 1396 | . . . . . . 160 10 10 70 60 . . 20 76 10 30 220 . . . 100 . 90 240 . . 20 280 Lost Ally 950 | . . . . . . 100 60 . 40 . . 60 . 80 20 140 . . . . 70 . . 280 20 20 10 50 Purge Threat 150 | . . . . . . . . . . . . . . 150 . . . . . . . . . . . . . . Squads Dispatched 53 | . 2 . . . 1 . 4 3 . . . . 2 2 . . 10 3 . . . . 4 9 6 1 3 3 Investigation 10 | . . . . . . . 1 . . . . . 1 1 . . . 1 . . . . . 2 3 . . 1 Extermination 16 | . . . . . . . . 2 . . . . 1 . . . 3 1 . . . . 3 2 . . 2 2 Reinforcement 20 | . 2 . . . 1 . 1 1 . . . . . 1 . . 3 1 . . . . 1 5 3 1 . . Assault 1 | . . . . . . . 1 . . . . . . . . . . . . . . . . . . . . . Garrison 6 | . . . . . . . 1 . . . . . . . . . 4 . . . . . . . . . 1 . Intercept . | . . . . . . . . . . . . . . . . . . . . . . . . . . . . . Searches Triggered . | . . . . . . . . . . . . . . . . . . . . . . . . . . . . . Construction Impeded 1 | . . . . . . . . . . . . . . . . . 1 . . . . . . . . . . . Haulers Reinforced 3 | . . . . . . . . . . . . . . . . . . 1 . . . . . . 1 1 . . Active Scanning Responses . | . . . . . . . . . . . . . . . . . . . . . . . . . . . . . Cargo Convoy Interrupts . | . . . . . . . . . . . . . . . . . . . . . . . . . . . . . Stealth | -11 -10 -10 -10 -9 -8 -8 -8 -7 -7 -7 -7 -6 -6 -6 -6 -6 -6 -5 -5 -5 -5 -4 -4 -4 -3 -2 -1 -1 --------- Run | Yrd Mat Min Exi Min Mat Gar Mat Fac Low Low Zio Pro Fac Ext Cet Arc Hub Fac Upp Upp War Pro Fac Arm Res Res Acc Com Distress Signals 46 | . 1 . . . 3 . 2 1 . . . 1 1 1 2 . 4 . . . 1 . 1 . 12 13 . 3 Communications Jammed 86 | . . . . . . . . . . . . . 12 1 . . . . . . . . 15 38 2 5 7 6 Distress Signals 73 | . . . . . . . . . . . . . 11 1 . . . . . . . . 15 27 2 5 7 5 Times Spotted 595 | . 5 . . 1 10 39 17 9 20 11 . 50 7 31 9 4 25 1 4 5 83 4 27 36 12 21 16 148 Peak Tracking Total 103 | . 3 . . 1 4 7 5 3 7 4 . 9 3 4 5 5 8 . 4 5 33 2 8 11 5 5 10 103 Tactical Retreats 48 | . 1 . . . 1 5 1 . . . . 3 . 1 . . 3 . 3 2 2 1 1 6 2 3 2 11 Traps | -11 -10 -10 -10 -9 -8 -8 -8 -7 -7 -7 -7 -6 -6 -6 -6 -6 -6 -5 -5 -5 -5 -4 -4 -4 -3 -2 -1 -1 ------- Run | Yrd Mat Min Exi Min Mat Gar Mat Fac Low Low Zio Pro Fac Ext Cet Arc Hub Fac Upp Upp War Pro Fac Arm Res Res Acc Com Traps Triggered 22 | . 2 . . . . 8 1 1 . . . . . 2 . . 1 . . . . . 1 5 1 . . . Indirectly 1 | . . . . . . . . . . . . . . . . . 1 . . . . . . . . . . . Trap Hack Attempts 1 | . . . . . . . . . . . . . . . . . . . . . . . . . . . . 1 Triggered . | . . . . . . . . . . . . . . . . . . . . . . . . . . . . . Disarmed . | . . . . . . . . . . . . . . . . . . . . . . . . . . . . . Reprogrammed 1 | . . . . . . . . . . . . . . . . . . . . . . . . . . . . 1 Reused 2 | . . . . . . . . 1 . . . . . . . . . . . . . . . . . . . 1 Traps Reconfigurated 13 | . . . . . . . . 3 . . . . . 10 . . . . . . . . . . . . . . Traps Extracted . | . . . . . . . . . . . . . . . . . . . . . . . . . . . . . Installed . | . . . . . . . . . . . . . . . . . . . . . . . . . . . . . Triggered 3 | . . . . . . . . 1 . . . . 1 . . . . . . . . . . . . . . 1 Most Traps Carried 1 | . . . . . . . . . . . . . . . . . . . . 1 1 . . . . . . . Machines | -11 -10 -10 -10 -9 -8 -8 -8 -7 -7 -7 -7 -6 -6 -6 -6 -6 -6 -5 -5 -5 -5 -4 -4 -4 -3 -2 -1 -1 ---------- Run | Yrd Mat Min Exi Min Mat Gar Mat Fac Low Low Zio Pro Fac Ext Cet Arc Hub Fac Upp Upp War Pro Fac Arm Res Res Acc Com Machines Disabled 66 | . . . . . . 9 2 2 1 . . 1 1 1 1 1 19 1 . . 1 . 10 11 2 1 2 . Max in Single Turn 14 | . . . . . . 2 1 1 1 . . 1 1 1 1 . 14 1 . . 1 . 5 1 . 1 1 . Garrison Access 3 | . . . . . . . . . . . . . . . . . . 1 . . . . . . . 2 . . Garrison Relay 6 | . . . . . . 6 . . . . . . . . . . . . . . . . . . . . . . Phase Generator 1 | . . . . . . 1 . . . . . . . . . . . . . . . . . . . . . . Network Hub 3 | . . . . . . . . . . . . . . . . . 3 . . . . . . . . . . . Machines Repaired . | . . . . . . . . . . . . . . . . . . . . . . . . . . . . . Machines Dismantled 1 | . . . . . . . . . . . . . . . 1 . . . . . . . . . . . . . Machines Sabotaged . | . . . . . . . . . . . . . . . . . . . . . . . . . . . . . Overloaded Fab Kills . | . . . . . . . . . . . . . . . . . . . . . . . . . . . . . Hacking | -11 -10 -10 -10 -9 -8 -8 -8 -7 -7 -7 -7 -6 -6 -6 -6 -6 -6 -5 -5 -5 -5 -4 -4 -4 -3 -2 -1 -1 --------- Run | Yrd Mat Min Exi Min Mat Gar Mat Fac Low Low Zio Pro Fac Ext Cet Arc Hub Fac Upp Upp War Pro Fac Arm Res Res Acc Com Machines Accessed 86 | . 3 . 2 . 1 3 3 2 . 2 . . 4 16 1 1 3 2 . . 7 . 6 7 11 4 3 5 Terminals 52 | . 3 . . . . 3 1 2 . . . . 1 16 1 . 3 1 . . . . 2 5 4 3 2 5 Fabricators 6 | . . . . . . . . . . . . . . . . . . . . . . . 2 2 1 1 . . Repair Stations 3 | . . . . . . . 1 . . . . . 1 . . . . . . . . . . . 1 . . . Recycling Units 1 | . . . . . . . 1 . . . . . . . . . . . . . . . . . . . . . Scanalyzers 8 | . . . . . . . . . . . . . 2 . . . . . . . . . 2 . 3 . 1 . Garrison Access 4 | . . . . . 1 . . . . . . . . . . . . 1 . . . . . . 2 . . . Total Hacks 360 | . 8 . 5 . 2 5 4 5 . 13 . . 31 51 2 10 9 14 . . 15 . 24 25 70 27 14 26 Successful 168 | . 4 . 5 . 1 1 2 . . 13 . . 21 22 . 10 4 2 . . 15 . 8 5 27 12 7 9 Failed 191 | . 4 . . . 1 4 2 5 . . . . 10 29 2 . 5 12 . . . . 16 20 42 15 7 17 Catastrophic 45 | . . . . . . 1 . 1 . . . . 3 4 . . 1 4 . . . . 2 8 12 4 2 3 Database Lockouts 1 | . . . . . . . . . . . . . . . . . . . . . . . . . 1 . . . Manual 88 | . 4 . 1 . . . . . . . . . . 18 1 . 5 9 . . . . 7 11 4 17 2 9 Terminals 191 | . 8 . . . . 5 1 5 . . . . 3 51 2 . 9 6 . . . . 8 17 16 24 10 26 Fabricators 21 | . . . . . . . . . . . . . . . . . . . . . . . 4 8 6 3 . . Repair Stations 17 | . . . . . . . 2 . . . . . 4 . . . . . . . . . . . 11 . . . Recycling Units 1 | . . . . . . . 1 . . . . . . . . . . . . . . . . . . . . . Scanalyzers 71 | . . . . . . . . . . . . . 24 . . . . . . . . . 12 . 31 . 4 . Garrison Access 16 | . . . . . 2 . . . . . . . . . . . . 8 . . . . . . 6 . . . Terminal Hacks 92 | . 3 . 5 . . 1 . . . 13 . . . 16 . 10 3 . . . 15 . 1 3 1 9 4 8 Record 39 | . . . 4 . . . . . . 12 . . . . . 10 . . . . 13 . . . . . . . Robot Schematic 1 | . . . . . . . . . . . . . . 1 . . . . . . . . . . . . . . Robot Analysis 4 | . 1 . . . . . . . . . . . . . . . . . . . . . . . . 3 . . Prototype ID Bank 6 | . 1 . . . . . . . . . . . . 3 . . . . . . . . . . 1 1 . . Open Door 11 | . . . . . . . . . . 1 . . . 7 . . . . . . 2 . . 1 . . . . Level Access Points 3 | . . . . . . . . . . . . . . . . . . . . . . . . . . 1 1 1 Branch Access Points 2 | . 1 . . . . . . . . . . . . . . . . . . . . . . . . . 1 . Emergency Access Points 2 | . . . . . . . . . . . . . . . . . 1 . . . . . . . . . . 1 Machine Index 1 | . . . . . . . . . . . . . . . . . . . . . . . . . . . . 1 Terminal Index 1 | . . . . . . . . . . . . . . . . . . . . . . . . . . . . 1 Garrison Index 1 | . . . . . . . . . . . . . . . . . . . . . . . . . . 1 . . Alert Level 1 | . . . . . . . . . . . . . . . . . . . . . . . . . . . 1 . Unreport Threat 1 | . . . . . . . . . . . . . . 1 . . . . . . . . . . . . . . Locate Traps 6 | . . . . . . . . . . . . . . 1 . . 1 . . . . . . 1 . . . 3 Reprogram Traps 1 | . . . . . . . . . . . . . . . . . . . . . . . . . . . . 1 Patrol Status 1 | . . . . . . . . . . . . . . . . . . . . . . . . . . . 1 . Transport Status 1 | . . . . . . . . . . . . . . 1 . . . . . . . . . . . . . . Assault Status 1 | . . . . . . . . . . . . . . . . . . . . . . . . . . 1 . . Recall Assault 1 | . . . . . . . . . . . . . . . . . . . . . . . . . . 1 . . Hauler Manifests 1 | . . . . . . . . . . . . . . . . . 1 . . . . . . . . . . . Zone Layout 5 | . . . . . . . . . . . . . . 2 . . . . . . . . 1 1 . 1 . . Patrol Navigation 1 | . . . . . . 1 . . . . . . . . . . . . . . . . . . . . . . Proto ID Catalog 1 | . . . 1 . . . . . . . . . . . . . . . . . . . . . . . . . Fabricator Hacks 6 | . . . . . . . . . . . . . . . . . . . . . . . 1 2 3 . . . Network Status 3 | . . . . . . . . . . . . . . . . . . . . . . . 1 1 1 . . . Load Schematic 1 | . . . . . . . . . . . . . . . . . . . . . . . . . 1 . . . Build 2 | . . . . . . . . . . . . . . . . . . . . . . . . 1 1 . . . Repair Station Hacks 6 | . . . . . . . 1 . . . . . 1 . . . . . . . . . . . 4 . . . Scan Component 5 | . . . . . . . 1 . . . . . 1 . . . . . . . . . . . 3 . . . Repair 1 | . . . . . . . . . . . . . . . . . . . . . . . . . 1 . . . Recycling Unit Hacks 1 | . . . . . . . 1 . . . . . . . . . . . . . . . . . . . . . Report Inventory 1 | . . . . . . . 1 . . . . . . . . . . . . . . . . . . . . . Scanalyzer 42 | . . . . . . . . . . . . . 20 . . . . . . . . . 2 . 18 . 2 . Insert Component 16 | . . . . . . . . . . . . . 7 . . . . . . . . . . . 9 . . . Analyze 11 | . . . . . . . . . . . . . 6 . . . . . . . . . . . 5 . . . Retrieve Study 15 | . . . . . . . . . . . . . 7 . . . . . . . . . 2 . 4 . 2 . Garrison Access Hacks 1 | . . . . . 1 . . . . . . . . . . . . . . . . . . . . . . . Unlock Access 1 | . . . . . 1 . . . . . . . . . . . . . . . . . . . . . . . Unauthorized Hacks 20 | . 1 . . . . . . . . . . . . 6 . . 1 2 . . . . 4 . 1 3 1 1 Terminals 14 | . 1 . . . . . . . . . . . . 6 . . 1 1 . . . . 1 . . 2 1 1 Track 2 | . . . . . . . . . . . . . . 1 . . . . . . . . . . . 1 . . Assimilate 2 | . . . . . . . . . . . . . . . . . . . . . . . . . . . 1 1 Botnet 4 | . 1 . . . . . . . . . . . . 2 . . . 1 . . . . . . . . . . Disrupt 5 | . . . . . . . . . . . . . . 2 . . 1 . . . . . 1 . . 1 . . Operators 1 | . . . . . . . . . . . . . . 1 . . . . . . . . . . . . . . Fabricators 5 | . . . . . . . . . . . . . . . . . . . . . . . 3 . 1 1 . . Fabnet 4 | . . . . . . . . . . . . . . . . . . . . . . . 2 . 1 1 . . Haulers 1 | . . . . . . . . . . . . . . . . . . . . . . . 1 . . . . . Repair Stations . | . . . . . . . . . . . . . . . . . . . . . . . . . . . . . Recycling Units . | . . . . . . . . . . . . . . . . . . . . . . . . . . . . . Scanalyzers . | . . . . . . . . . . . . . . . . . . . . . . . . . . . . . Garrison Access 1 | . . . . . . . . . . . . . . . . . . 1 . . . . . . . . . . Jam 1 | . . . . . . . . . . . . . . . . . . 1 . . . . . . . . . . Data Cores Recovered . | . . . . . . . . . . . . . . . . . . . . . . . . . . . . . Used . | . . . . . . . . . . . . . . . . . . . . . . . . . . . . . Hacking Detections 62 | . 3 . . . 1 3 2 2 . . . . 4 12 1 . 1 2 . . . . 5 5 10 4 2 5 Full Trace Events 6 | . . . . . . . . . . . . . 1 1 . . . . . . . . . 1 2 . . 1 Feedback Events 1 | . . . . . . . . . . . . . . . . . . . . . . . . . . . . 1 Hackware Fried 1 | . . . . . . . . . . . . . . . . . . . . . . . . . . . . 1 Feedback Blocked . | . . . . . . . . . . . . . . . . . . . . . . . . . . . . . Robot Schematics Acquired 4 | . . . . . . . . . . . 3 . . 1 . . . . . . . . . . . . . . Robots Built 4 | . . . . . . . . . . . . . . . . . . . . . . . . 4 . . . . Authchips . | . . . . . . . . . . . . . . . . . . . . . . . . . . . . . Time 40 | . . . . . . . . . . . . . . . . . . . . . . . . 40 . . . . Total Robot Build Rating 4 | . . . . . . . . . . . . . . . . . . . . . . . . 4 . . . . Part Schematics Acquired 16 | . . . . . . . . . . . 11 . 3 . . . . . . . . . . . 2 . . . Parts Built 1 | . . . . . . . . . . . . . . . . . . . . . . . . . 1 . . . Authchips . | . . . . . . . . . . . . . . . . . . . . . . . . . . . . . Time 152 | . . . . . . . . . . . . . . . . . . . . . . . . . 152 . . . Total Part Build Rating 5 | . . . . . . . . . . . . . . . . . . . . . . . . . 5 . . . Part Studies Acquired 15 | . . . . . . . . . . . . . 7 . . . . . . . . . 2 . 4 . 2 . Parts Repaired 1 | . . . . . . . . . . . . . . . . . . . . . . . . . 1 . . . Time 44 | . . . . . . . . . . . . . . . . . . . . . . . . . 44 . . . Parts Recycled . | . . . . . . . . . . . . . . . . . . . . . . . . . . . . . Recycled Matter . | . . . . . . . . . . . . . . . . . . . . . . . . . . . . . Retrieved Matter . | . . . . . . . . . . . . . . . . . . . . . . . . . . . . . Retrieved Components . | . . . . . . . . . . . . . . . . . . . . . . . . . . . . . Parts Scanalyzed 6 | . . . . . . . . . . . . . 3 . . . . . . . . . . . 3 . . . Part Schematics Acquired 5 | . . . . . . . . . . . . . 3 . . . . . . . . . . . 2 . . . Parts Damaged 3 | . . . . . . . . . . . . . 2 . . . . . . . . . . . 1 . . . Bothacking | -11 -10 -10 -10 -9 -8 -8 -8 -7 -7 -7 -7 -6 -6 -6 -6 -6 -6 -5 -5 -5 -5 -4 -4 -4 -3 -2 -1 -1 ------------ Run | Yrd Mat Min Exi Min Mat Gar Mat Fac Low Low Zio Pro Fac Ext Cet Arc Hub Fac Upp Upp War Pro Fac Arm Res Res Acc Com Used RIF Installer . | . . . . . . . . . . . . . . . . . . . . . . . . . . . . . Robots Hacked 12 | . . . . . . . . . . . . . . . . . . . . . . . . . 6 5 1 . Non-combat 1 | . . . . . . . . . . . . . . . . . . . . . . . . . . . 1 . Combat 11 | . . . . . . . . . . . . . . . . . . . . . . . . . 6 5 . . Robot Hacks Applied 3 | . . . . . . . . . . . . . . . . . . . . . . . . . . 2 1 . parse_system 3 | . . . . . . . . . . . . . . . . . . . . . . . . . . 2 1 . Relay Couplers Released 33 | . . . . . . 30 . . . . . . . . . . . . . . . . . . . 3 . . Machine Destruction 29 | . . . . . . 26 . . . . . . . . . . . . . . . . . . . 3 . . Programmers 4 | . . . . . . 4 . . . . . . . . . . . . . . . . . . . . . . Fabnet Peak Effective % 6 | . . . . . . . . . . . . . . . . . . . . . . . . . 6 5 1 1 Autooverrided 9 | . . . . . . . . . . . . . . . . . . . . . . . . . 6 3 . . Robots Rewired 31 | . . . . . . 9 . . 2 . . 5 . 7 . . . . . . 5 . . 3 . . . . Allies Hacked 1 | . . . . . . . . . . . . . . . . . . . . . . . . 1 . . . . Hacks Repelled 1 | . . . . . . . . . . . . 1 . . . . . . . . . . . . . . . . Allies | -11 -10 -10 -10 -9 -8 -8 -8 -7 -7 -7 -7 -6 -6 -6 -6 -6 -6 -5 -5 -5 -5 -4 -4 -4 -3 -2 -1 -1 -------- Run | Yrd Mat Min Exi Min Mat Gar Mat Fac Low Low Zio Pro Fac Ext Cet Arc Hub Fac Upp Upp War Pro Fac Arm Res Res Acc Com Total Allies 77 | . . 2 . 1 . 9 . . 2 . . 6 . 17 5 . . . . . 5 . . 17 6 3 1 3 Largest Group 13 | . . 2 . 1 . 6 3 . 2 . . 4 . 8 13 12 . . . . 5 . . 10 2 1 1 3 Highest-Rated Group 840 | . . 39 . 31 . 72 72 . 60 . . 128 . 369 840 795 . . . . 241 . . 481 172 69 45 237 Highest-Rated Ally 159 | . . 31 . 31 . 24 24 . 30 . . 41 . 159 159 150 . . . . 64 . . 58 116 69 45 96 Initial Warlord ECA Mod 11 | . . . . . . . 11 10 10 10 10 9 9 9 9 9 9 6 6 6 6 5 5 5 4 3 2 2 Warlord Squad Rendezvous 2 | . . . . . . . . . . . . . . . . . 2 . . . . . . . . . . . Muscle 1 | . . . . . . . . . . . . . . . . . 1 . . . . . . . . . . . Geek 1 | . . . . . . . . . . . . . . . . . 1 . . . . . . . . . . . Total Orders . | . . . . . . . . . . . . . . . . . . . . . . . . . . . . . Ally Attacks 432 | . . 1 . 2 . 16 37 . 5 . . 57 . 103 41 39 . . . . 33 . . 52 29 13 . 4 Total Damage 12295 | . . 21 . 44 . 219 901 . 134 . . 1488 . 1719 940 1766 . . . . 2145 . . 1406 1113 264 . 135 Kills 85 | . . . . . . 1 10 . . . . 10 . 14 7 17 . . . . 8 . . 9 6 3 . . Allies Corrupted 4 | . . . . . . . . . . . . . . 2 . . . . . . 1 . . 1 . . . . Allies Melted 2 | . . . . . . . . . 1 . . . . . . 1 . . . . . . . . . . . . Intel | -11 -10 -10 -10 -9 -8 -8 -8 -7 -7 -7 -7 -6 -6 -6 -6 -6 -6 -5 -5 -5 -5 -4 -4 -4 -3 -2 -1 -1 ------- Run | Yrd Mat Min Exi Min Mat Gar Mat Fac Low Low Zio Pro Fac Ext Cet Arc Hub Fac Upp Upp War Pro Fac Arm Res Res Acc Com Active Infowar (turns) 11412 | . . . . . 319 1458 380 1001 806 681 1185 18 369 428 . . 28 184 267 253 654 8 1309 597 392 546 229 300 Optics 531 | . . . . . . . . . . . . . . . . . . . . . . . . . . 2 229 300 Sensors 1 | . . . . . . . . . . . . . . . . . . . . . . . . . 1 . . . Structural 391 | . . . . . . . . . . . . . . . . . . . . . . . . . 391 . . . Seismic 1777 | . . . . . 319 1458 . . . . . . . . . . . . . . . . . . . . . . Machine Analysis 4071 | . . . . . . . 380 1001 806 681 1185 18 . . . . . . . . . . . . . . . . Cloaking 502 | . . . . . . . . . . . . . . . . . . . . . . . . 208 59 48 111 76 Jamming 5401 | . . . . . . . . 355 . . . . 369 428 . . . 184 267 253 654 8 1309 389 345 544 217 79 ECM 57 | . . . . . . . . 29 . . . . . . . . 28 . . . . . . . . . . . Robot Analysis Total 4 | . 1 . . . . . . . . . . . . . . . . . . . . . . . . 3 . . Derelict Logs Recovered 6 | . . . . . . . . . 1 . 3 1 . . . . . . . . . 1 . . . . . . Drone Launches . | . . . . . . . . . . . . . . . . . . . . . . . . . . . . . Drone Recoveries . | . . . . . . . . . . . . . . . . . . . . . . . . . . . . . Exploration | -11 -10 -10 -10 -9 -8 -8 -8 -7 -7 -7 -7 -6 -6 -6 -6 -6 -6 -5 -5 -5 -5 -4 -4 -4 -3 -2 -1 -1 ------------- Run | Yrd Mat Min Exi Min Mat Gar Mat Fac Low Low Zio Pro Fac Ext Cet Arc Hub Fac Upp Upp War Pro Fac Arm Res Res Acc Com Turns Passed 19519 | 49 325 117 337 200 320 2681 688 1001 806 681 1185 1417 726 921 414 97 708 403 267 253 922 194 1593 719 926 1033 229 307 Spaces Moved 16402 | 40 237 83 245 132 100 960 331 542 439 382 804 716 413 481 163 70 326 602 323 301 786 334 1047 857 1919 2257 645 867 Core 442 | 3 . . . . . . . . . . . . . . . . 48 49 . . 13 267 25 22 . . . 15 Treads 347 | . . . . . . 347 . . . . . . . . . . . . . . . . . . . . . . Legs 1232 | . . . . . . . . . . . . . . . . . . . . . . . 1022 210 . . . . Wheels 7608 | 37 237 83 245 132 100 613 331 542 439 382 804 716 413 481 163 70 278 141 323 301 773 . . 4 . . . . Hover 67 | . . . . . . . . . . . . . . . . . . . . . . 67 . . . . . . Flight 6706 | . . . . . . . . . . . . . . . . . . 412 . . . . . 621 1919 2257 645 852 Fastest Speed 5 | 50 90 135 135 135 135 135 160 160 145 145 145 145 115 115 130 130 50 37 82 82 50 50 100 5 14 16 17 8 Average Speed 86 | 87 98 135 135 135 135 214 160 160 156 151 145 173 129 126 130 130 130 50 82 82 91 54 113 41 16 16 17 17 Slowest Speed 320 | 90 135 135 135 135 135 320 205 175 160 160 145 175 150 150 130 140 230 110 82 82 125 100 120 245 21 17 17 50 Overloaded Moves 207 | . . . . . . . . . . . . . . . . . . . . . . . . 149 . . . 58 Propulsion Burnouts . | . . . . . . . . . . . . . . . . . . . . . . . . . . . . . Robots Hopped 45 | . . . . . . . . . . . . . . . . . . 1 . . . . . 11 . 11 4 18 Potential Cave-ins 2 | . . . . . . . . . . . . . . . . . . . . . . . . . . . . 2 Cave-ins Triggered 1 | . . . . . . . . . . . . . . . . . . . . . . . . . . . . 1 Exploration Rate (%) 47 | 3 41 20 61 49 13 86 41 13 60 43 85 67 11 77 73 75 53 12 58 47 94 58 26 54 55 48 17 29 Regions Visited 28 Branch Regions 17 Pre-discovered Areas 4 | . . . 1 . . . . . 1 . 1 . . . . . . . . . 1 . . . . . . . Known Exits Taken 18 | . 1 . . . 1 . . 1 1 1 1 1 . . . . 1 1 1 1 1 1 1 1 1 1 1 . Unknown Exits Taken 9 | 1 . 1 1 1 . . 1 . . . . . 1 1 1 1 . . . . . . . . . . . . Scrap Searched 14 | . . . . 1 . . . . 2 1 3 1 . . . . . . 1 1 . 4 . . . . . . Spaces Dug 81 | . . . . . . . . 2 . . . . 17 . . . . . . . . 1 15 16 4 7 4 15 Terrain Destroyed 745 | . . . . . . 68 11 8 39 53 . 17 22 5 6 . 330 . . . 10 1 110 34 5 7 4 15 Melee 34 | . . . . . . . . . . . . . . . . . . . . . . 1 6 16 4 2 4 1 Projectile 164 | . . . . . . . 11 2 . 1 . 17 22 5 6 . 28 . . . 10 . 24 18 1 5 . 14 AOE 547 | . . . . . . 68 . 6 39 52 . . . . . . 302 . . . . . 80 . . . . . Terrain Rammed . | . . . . . . . . . . . . . . . . . . . . . . . . . . . . . Walls Destroyed . | . . . . . . . . . . . . . . . . . . . . . . . . . . . . . Machines Disabled . | . . . . . . . . . . . . . . . . . . . . . . . . . . . . . Actions | -11 -10 -10 -10 -9 -8 -8 -8 -7 -7 -7 -7 -6 -6 -6 -6 -6 -6 -5 -5 -5 -5 -4 -4 -4 -3 -2 -1 -1 --------- Run | Yrd Mat Min Exi Min Mat Gar Mat Fac Low Low Zio Pro Fac Ext Cet Arc Hub Fac Upp Upp War Pro Fac Arm Res Res Acc Com Total 20243 | 54 306 88 253 143 229 1360 434 622 502 448 824 822 534 690 330 76 482 671 324 303 939 344 1323 1101 2448 2882 740 971 Wait 1997 | . 34 6 . . 92 53 49 21 1 13 1 13 41 88 129 4 57 4 . . 34 1 138 100 390 574 84 70 Move 16293 | 39 236 82 244 131 99 959 330 541 438 381 803 715 412 480 162 69 325 599 322 300 785 333 1047 837 1918 2237 636 833 Hop 36 | . . . . . . . . . . . . . . . . . . 1 . . . . . 8 . 8 4 15 Pick Up 247 | 10 9 . 6 6 5 31 3 7 2 12 7 10 17 9 4 . 8 17 1 1 11 2 21 7 22 12 1 6 Fast Attach 106 | . 2 . . . . 2 3 . 2 . 4 3 . 1 3 . . 15 . . 1 3 14 27 21 2 . 3 Attach 144 | 5 4 . . . 4 21 . 3 6 8 1 . 10 9 1 3 15 5 1 . 7 3 10 10 1 5 2 10 Detach 15 | . 2 . . . . 2 . . . . 1 1 . 2 . . . . . . 1 1 . 1 1 1 . 2 Swap 111 | . . . . 1 . 22 8 7 4 2 1 3 2 4 4 . 9 3 . . 6 . 7 4 11 8 1 4 Drop 165 | . 2 . 3 . 1 7 10 4 3 3 6 16 9 3 5 . 4 9 . . 13 . 13 8 32 13 . 1 Fire 628 | . 17 . . 5 28 126 31 31 31 29 . 37 43 54 14 . 62 . . . 24 . 38 34 . 5 . 19 Melee 170 | . . . . . . 12 . . . . . . . . . . 2 18 . 2 . 1 35 28 37 17 12 6 Ram . | . . . . . . . . . . . . . . . . . . . . . . . . . . . . . Kick 1 | . . . . . . . . . . . . . . . . . . . . . . . . 1 . . . . Crush . | . . . . . . . . . . . . . . . . . . . . . . . . . . . . . Escape Stasis 103 | . . . . . . 56 . 8 . . . . . 8 . . . . . . . . . 15 15 . . 1 Rewire 218 | . . . . . . 69 . . 15 . . 24 . 32 . . . . . . 57 . . 21 . . . . Trap 1 | . . . . . . . . . . . . . . . . . . . . . . . . . . . . 1 Miscellaneous 8 | . . . . . . . . . . . . . . . 8 . . . . . . . . . . . . . Route ------- -11/Scrapyard -10/Materials (discovered 3 exits: [*Mat] / *Min x2) -10/Mines -10/Exiles -9/Mines -8/Materials -8/Garrison (discovered 3 exits: *Mat x3) -8/Materials -7/Factory (discovered 2 exits: *Fac / *Low) -7/Lower Caves -7/Lower Caves -7/Zion -6/Proximity Caves -6/Factory (discovered 2 exits: Fac / *Ext) -6/Extension (discovered 2 exits: *Fac / *Cet) -6/Cetus (discovered 2 exits: *Fac / *Arc) -6/Archives -6/Hub_04(d) (discovered 2 exits: *Fac x2) -5/Factory (discovered 2 exits: *Fac / *Upp) -5/Upper Caves -5/Upper Caves -5/Warlord -4/Proximity Caves -4/Factory (discovered 2 exits: *Res / *Arm) -4/Armory -3/Research (discovered 2 exits: *Res x2) -2/Research (discovered 4 exits: *Acc x3 / *Qua) -1/Access (discovered 2 exits: Sur / *Com) -1/Command (discovered 2 exits: Sur x2) History --------- Turn | Location | Event 19 | -11/Scrapyard | Discovered new exit (range 16) 50 | -11/Scrapyard | Entered Materials 174 | -10/Materials | Discovered new exit (range 9) 215 | -10/Materials | Discovered new exit (range 15) 256 | -10/Materials | Identified exit to Mines 300 | -10/Materials | Build established: Mutant 375 | -10/Materials | Entered Mines 409 | -10/Mines | Assembled infested the area 487 | -10/Mines | Discovered new exit (range 5) 492 | -10/Mines | Entered Exiles 525 | -10/Exiles | Met 8R-AWN 546 | -10/Exiles | Met EX-HEX 587 | -10/Exiles | Met EX-BIN 603 | -10/Exiles | Aligned with FarCom system 605 | -10/Exiles | Given EX-Vault access code 637 | -10/Exiles | Opened EX-Vault 645 | -10/Exiles | Found Trap Reconfigurator 647 | -10/Exiles | Found Gui. Plasma Cannon 654 | -10/Exiles | Found XL Autogun Array 686 | -10/Exiles | Warned to stay clear of 0b10 Research branches 725 | -10/Exiles | Met EX-DEC 732 | -10/Exiles | Learned location of Zion (-7) 815 | -10/Exiles | Discovered new exit (range 12) 829 | -10/Exiles | Left Exiles lab with Trap Reconfigurator 829 | -10/Exiles | Entered Mines 832 | -9/Mines | Received a Mining Laser from a helpful Derelict 866 | -9/Mines | YI-UF0 nonchalantly dropped a Grenade Launcher on the ground 886 | -9/Mines | Core integrity fell below 50% 988 | -9/Mines | Discovered new exit (range 15) 1029 | -9/Mines | Entered Materials 1029 | -8/Materials | Evolved 4 slots: Utility x4 1239 | -8/Materials | Lost 3 parts (1p1u1w) 1347 | -8/Materials | Identified exit to Garrison 1349 | -8/Materials | Entered Garrison 1477 | -8/Garrison | Triggered checkpoint 1539 | -8/Garrison | Lost 4 parts (1p1n2w) 1582 | -8/Garrison | Garrison Relay disabled 1795 | -8/Garrison | Triggered checkpoint 1888 | -8/Garrison | Discovered new exit (range 12) 1934 | -8/Garrison | Phase Generator disabled 2065 | -8/Garrison | Triggered checkpoint 2297 | -8/Garrison | Destroyed 7 combat bots 2581 | -8/Garrison | Triggered checkpoint 2584 | -8/Garrison | Core integrity fell below 50% 2678 | -8/Garrison | Lost 4 parts (1p2n1w) 2805 | -8/Garrison | Triggered checkpoint 2867 | -8/Garrison | Garrison Relay disabled 2883 | -8/Garrison | Garrison Relay disabled 2950 | -8/Garrison | Build established: Scavenger-Mutant 2951 | -8/Garrison | Discovered new exit (range 12) 3138 | -8/Garrison | Triggered checkpoint 3244 | -8/Garrison | Garrison Relay disabled 3273 | -8/Garrison | Triggered checkpoint 3284 | -8/Garrison | Discovered new exit (range 10) 3445 | -8/Garrison | Triggered checkpoint 3540 | -8/Garrison | Garrison Relay disabled 3840 | -8/Garrison | Lost 6 allies 4030 | -8/Garrison | Entered Materials 4030 | -8/Materials | Accompanied by 3 allies 4336 | -8/Materials | Garrison activated, responded to threat 4430 | -8/Materials | First assault squad dispatched 4593 | -8/Materials | Build established: Mutant 4710 | -8/Materials | Discovered new exit (range 5) 4718 | -8/Materials | Entered Factory 4718 | -7/Factory | Evolved 2 slots: Power x1, Utility x1 5097 | -7/Factory | Discovered new exit (range 8) 5472 | -7/Factory | Discovered new exit (range 15) 5611 | -7/Factory | Identified exit to Factory 5717 | -7/Factory | Identified exit to Lower Caves 5719 | -7/Factory | Entered Lower Caves 5720 | -7/Lower Caves | Encountered a Warlord checkpoint 5725 | -7/Lower Caves | Met a Warlord Commander 5726 | -7/Lower Caves | Learned location of Warlord (-5) 5727 | -7/Lower Caves | Warlord Commander delivered Encrypted Comm Array 5730 | -7/Lower Caves | Found Encrypted Comm Array 5858 | -7/Lower Caves | Attracted the attention of an 0b10 checkpoint 6297 | -7/Lower Caves | Attracted the attention of an 0b10 outpost 6361 | -7/Lower Caves | Destroyed 10 combat bots 6366 | -7/Lower Caves | Lost 6 parts (1p1n3u1w) 6391 | -7/Lower Caves | Discovered new exit (range 9) 6404 | -7/Lower Caves | Identified exit to Lower Caves 6428 | -7/Lower Caves | Learned Factory machine intel 6447 | -7/Lower Caves | Spotted B-75 Beast 6525 | -7/Lower Caves | Entered another Lower Caves area 6552 | -7/Lower Caves | Core integrity fell below 50% 6572 | -7/Lower Caves | Lost 3 parts (1p2w) 6891 | -7/Lower Caves | Lost 4 parts (2p2u) 7100 | -7/Lower Caves | Discovered new exit (range 9) 7108 | -7/Lower Caves | Identified exit to Zion 7206 | -7/Lower Caves | Entered Zion 7257 | -7/Zion | Learned Factory emergency access door positions 7302 | -7/Zion | Acquired unknown access codes intercepted by a Zionite 7362 | -7/Zion | Discovered new exit (range 13) 7380 | -7/Zion | Identified exit to Proximity Caves 7405 | -7/Zion | Given A8's code to call for help 7457 | -7/Zion | System corruption cleaned by Quarantine Array 7515 | -7/Zion | Found Prototype Processor 7518 | -7/Zion | Found Prototype Processor 7520 | -7/Zion | Found Prototype Processor 7523 | -7/Zion | Found Prototype Processor 7523 | -7/Zion | Identified Exp. Target Analyzer 7528 | -7/Zion | Found Prototype Hackware 7528 | -7/Zion | Identified Exp. System Shield 7531 | -7/Zion | Found Prototype Processor 7531 | -7/Zion | Identified Exp. Terrain Scan Processor (x2) 7573 | -7/Zion | Learned location of Storage (-7) 7584 | -7/Zion | Learned Factory stockpile data 7858 | -7/Zion | Found GAL Module 7930 | -7/Zion | Rebuked by Imprinter 8231 | -7/Zion | Learned 4 Factory zone layouts 8391 | -7/Zion | Entered Proximity Caves 8393 | -6/Proximity Caves | Greeted by an Infiltrator in a former 0b10 base 8588 | -6/Proximity Caves | Former 0b10 base attacked by MAIN.C 8891 | -6/Proximity Caves | 0b10 base defense nominally successful 8936 | -6/Proximity Caves | Lost 16 allies 8990 | -6/Proximity Caves | Lost 5 allies 9150 | -6/Proximity Caves | Learned Factory trap positions 9497 | -6/Proximity Caves | Discovered exit to Factory (range 8) 9808 | -6/Proximity Caves | Entered Factory 9808 | -6/Factory | Evolved 2 slots: Propulsion x1, Weapon x1 9809 | -6/Factory | Identified exit to Factory 9810 | -6/Factory | Loaded intel: 101 trap records 9813 | -6/Factory | Loaded intel: 289 machine locations 10122 | -6/Factory | Identified Exp. Targeting Computer 10122 | -6/Factory | Identified Exp. Armor Integrity Analyzer 10143 | -6/Factory | Build established: Gunner 10304 | -6/Factory | Lost 4 parts (1p1n2w) 10448 | -6/Factory | Discovered new exit (range 13) 10534 | -6/Factory | Entered Extension 10592 | -6/Extension | Rescued a captive Derelict 10592 | -6/Extension | Rescued a captive Derelict 10628 | -6/Extension | Rescued a captive Derelict 10689 | -6/Extension | Rescued a captive Derelict 10690 | -6/Extension | Rescued a captive Derelict 10930 | -6/Extension | Rescued a captive Derelict 10932 | -6/Extension | Rescued a captive Derelict 10934 | -6/Extension | Spotted B-75 Beast 10956 | -6/Extension | Destroyed B-75 Beast 10963 | -6/Extension | Spotted B-75 Beast 10988 | -6/Extension | Destroyed B-75 Beast 11024 | -6/Extension | Lost 6 parts (1n2u3w) 11155 | -6/Extension | Lost 3 allies 11282 | -6/Extension | Rescued a captive Derelict 11358 | -6/Extension | Rescued A7 11382 | -6/Extension | Rescued a captive Derelict 11407 | -6/Extension | Discovered exit to Factory (range 10) 11409 | -6/Extension | Discovered new exit (range 6) 11423 | -6/Extension | Build established: Scavenger-Gunner 11455 | -6/Extension | Disrupted transfer network 11455 | -6/Extension | Entered Cetus 11455 | -6/Cetus | Accompanied by 8 allies (A7) 11460 | -6/Cetus | Acquired a Cetus Manufacturing Module code from A7 11465 | -6/Cetus | Spotted Cetus Guard 11465 | -6/Cetus | Spotted Cetus Guard 11466 | -6/Cetus | Destroyed Cetus Guard 11473 | -6/Cetus | Spotted Cetus Guard 11474 | -6/Cetus | Allies destroyed Cetus Guard 11474 | -6/Cetus | Allies destroyed Cetus Guard 11477 | -6/Cetus | Spotted Cetus Guard 11478 | -6/Cetus | Allies destroyed Cetus Guard 11554 | -6/Cetus | Started Cetus Manufacturing Module 11579 | -6/Cetus | Manufactured an Enhanced Grunt 11582 | -6/Cetus | Escorted A7 to Cetus Mainframe 11604 | -6/Cetus | Manufactured an Enhanced Grunt 11629 | -6/Cetus | Manufactured an Enhanced Grunt 11654 | -6/Cetus | Manufactured an Enhanced Grunt 11679 | -6/Cetus | Manufactured an Enhanced Grunt 11701 | -6/Cetus | Discovered new exit (range 15) 11737 | -6/Cetus | Spotted Cetus Guard 11737 | -6/Cetus | Spotted Cetus Guard 11741 | -6/Cetus | Spotted Cetus Guard 11741 | -6/Cetus | Spotted Cetus Guard 11749 | -6/Cetus | Allies destroyed Cetus Guard 11749 | -6/Cetus | Destroyed Cetus Guard 11756 | -6/Cetus | Destroyed Cetus Guard 11762 | -6/Cetus | Allies destroyed Cetus Guard 11770 | -6/Cetus | Discovered exit to Factory (range 16) 11778 | -6/Cetus | Met Revision 17 11869 | -6/Cetus | Entered Archives 11869 | -6/Archives | Accompanied by 12 allies (A7) 11875 | -6/Archives | Received a hacking code to weaken MAIN.C 11892 | -6/Archives | Met Zhirov 11898 | -6/Archives | Reinforcements dispatched to Archives 11907 | -6/Archives | Read partially decrypted archive contents 11910 | -6/Archives | Discovered new exit (range 15) 11943 | -6/Archives | Reinforcements dispatched to Archives 11945 | -6/Archives | Zhirov warped through subspace 11963 | -6/Archives | Zhirov detonated Archives 11966 | -6/Archives | Entered Hub_04(d) 11994 | -6/Hub_04(d) | Lost 3 parts (1p1n1u) 11994 | -6/Hub_04(d) | Lost 11 allies 12164 | -6/Hub_04(d) | Discovered exit to Factory (range 10) 12262 | -6/Hub_04(d) | Garrison activated, responded to threat 12277 | -6/Hub_04(d) | Joined by Warlord Muscle squad 12278 | -6/Hub_04(d) | Joined by Warlord Geek squad 12393 | -6/Hub_04(d) | Network Hub disabled 12451 | -6/Hub_04(d) | Network Hub disabled 12457 | -6/Hub_04(d) | Spotted Lightning 12460 | -6/Hub_04(d) | Spotted Lightning 12462 | -6/Hub_04(d) | Spotted Lightning 12464 | -6/Hub_04(d) | Lost 4 allies 12489 | -6/Hub_04(d) | System corruption reached 10% 12507 | -6/Hub_04(d) | Network Hub disabled 12513 | -6/Hub_04(d) | Core integrity fell below 50% 12563 | -6/Hub_04(d) | Destroyed Lightning 12579 | -6/Hub_04(d) | Lost 11 parts (2p2n3u4w) 12592 | -6/Hub_04(d) | System corruption reached 30% 12601 | -6/Hub_04(d) | Destroyed Lightning 12650 | -6/Hub_04(d) | Core integrity fell below 20% 12667 | -6/Hub_04(d) | Discovered exit to Factory (range 15) 12674 | -6/Hub_04(d) | Entered Factory 12674 | -5/Factory | Evolved 2 slots: Propulsion x2 12678 | -5/Factory | Lost 11 parts (1p4n3u3w) 12905 | -5/Factory | Discovered new exit (range 13) 12905 | -5/Factory | Discovered new exit (range 3) 12905 | -5/Factory | Identified exit to Upper Caves 12912 | -5/Factory | Identified exit to Factory 12914 | -5/Factory | Build established: Mutant 12922 | -5/Factory | Found Imp. Powered Armor 12944 | -5/Factory | Found Imp. Powered Armor 13077 | -5/Factory | Entered Upper Caves 13088 | -5/Upper Caves | Spotted B-75 Beast 13101 | -5/Upper Caves | Encountered a Warlord checkpoint 13311 | -5/Upper Caves | Discovered new exit (range 8) 13316 | -5/Upper Caves | Identified exit to Upper Caves 13344 | -5/Upper Caves | Entered another Upper Caves area 13347 | -5/Upper Caves | Ambushed by wild Derelicts 13503 | -5/Upper Caves | Discovered new exit (range 4) 13505 | -5/Upper Caves | Identified exit to Warlord 13597 | -5/Upper Caves | Entered Warlord 13621 | -5/Warlord | Discovered new exit (range 8) 13626 | -5/Warlord | Identified exit to Proximity Caves 13652 | -5/Warlord | System corruption cleaned by Quarantine Array 13731 | -5/Warlord | Learned Research recycling unit intel 13731 | -5/Warlord | Learned Research scanalyzer intel 13732 | -5/Warlord | Learned 4 Quarantine zone layouts 13733 | -5/Warlord | Learned Research emergency access door positions 13776 | -5/Warlord | Visited the Vortex Lab 13784 | -5/Warlord | Found Prototype Energy Gun 13785 | -5/Warlord | Found Prototype Energy Gun 13794 | -5/Warlord | Warlord's base attacked by MAIN.C 14011 | -5/Warlord | Met Warlord 14072 | -5/Warlord | Build established: Scavenger-Mutant 14144 | -5/Warlord | Warlord forces counterattacked 14152 | -5/Warlord | Found Prototype Reactor 14157 | -5/Warlord | Found Prototype Device 14159 | -5/Warlord | Found Prototype Processor 14178 | -5/Warlord | P-80 Master assimilated allied XV-AZH(l) 14180 | -5/Warlord | Identified Vortex Shotgun (x2) 14181 | -5/Warlord | Found Corrupted Prototype Ballistic Cannon 14208 | -5/Warlord | Spotted Striker 14209 | -5/Warlord | Spotted Executioner 14251 | -5/Warlord | Identified Thermal Barrier 14259 | -5/Warlord | Lost 9 allies 14263 | -5/Warlord | Spotted Striker 14272 | -5/Warlord | Spotted Executioner 14291 | -5/Warlord | Spotted Striker 14291 | -5/Warlord | Spotted Striker 14292 | -5/Warlord | Spotted Executioner 14299 | -5/Warlord | Destroyed Striker 14302 | -5/Warlord | Destroyed Striker 14309 | -5/Warlord | Allies destroyed Executioner 14323 | -5/Warlord | Destroyed 7 combat bots 14334 | -5/Warlord | Spotted Executioner 14339 | -5/Warlord | Spotted Executioner 14398 | -5/Warlord | Spotted Executioner 14399 | -5/Warlord | Lost 23 allies 14447 | -5/Warlord | Lost 7 allies 14469 | -5/Warlord | Warlord base infiltrated, sounded retreat 14473 | -5/Warlord | Opened side exit 14496 | -5/Warlord | Spotted Executioner 14502 | -5/Warlord | Spotted Striker 14507 | -5/Warlord | Spotted Striker 14516 | -5/Warlord | Core integrity fell below 50% 14519 | -5/Warlord | Entered Proximity Caves 14543 | -4/Proximity Caves | Lost 6 parts (1p3n1u1w) 14647 | -4/Proximity Caves | Identified Vortex Chain Reactor 14713 | -4/Proximity Caves | Entered Factory 14713 | -4/Factory | Evolved 2 slots: Propulsion x2 14942 | -4/Factory | Build established: Derelict-Mutant 15677 | -4/Factory | Build established: Gunner 15717 | -4/Factory | Discovered new exit (range 13) 15729 | -4/Factory | Identified exit to Research 16273 | -4/Factory | Build established: Scavenger-Mutant 16289 | -4/Factory | Discovered new exit (range 11) 16302 | -4/Factory | Identified exit to Armory 16306 | -4/Factory | Entered Armory 16368 | -4/Armory | Lost 5 parts (3n1u1w) 16576 | -4/Armory | P-70 Sage assimilated allied Rainmaker 7c 16612 | -4/Armory | Build established: Scavenger-Gunner 16642 | -4/Armory | Lost 6 parts (4n2u) 16723 | -4/Armory | Found Gamma Bomb Array 16733 | -4/Armory | Lost 11 parts (1p3n3u4w) 16745 | -4/Armory | Core integrity fell below 50% 16769 | -4/Armory | Discovered exit to Research (range 13) 16799 | -4/Armory | Assisted by bots powering up and referring to "LRC-V3" 16895 | -4/Armory | Fabricated K-01 Serf? 16904 | -4/Armory | Spotted B-86 Titan 16907 | -4/Armory | Spotted Armor Guard 16907 | -4/Armory | Spotted Armor Guard 16908 | -4/Armory | Spotted Armor Guard 16908 | -4/Armory | Spotted Armor Guard 16930 | -4/Armory | Lost 5 allies 17025 | -4/Armory | Entered Research 17025 | -3/Research | Evolved 2 slots: Propulsion x2 17027 | -3/Research | Loaded intel: 4 recycling unit locations 17028 | -3/Research | Loaded intel: 6 scanalyzer locations 17182 | -3/Research | Spotted B-86 Titan 17225 | -3/Research | Revision forces began assault on 0b10 17304 | -3/Research | Repaired Cld. Nuclear Pulse Thruster 17419 | -3/Research | Build established: Infiltrator-Sprinter 17429 | -3/Research | Discovered new exit (range 11) 17432 | -3/Research | Fabricated Cld. Plasma Cannon? 17432 | -3/Research | Identified exit to Research 17536 | -3/Research | Central database locked down 17547 | -3/Research | Discovered exit to Research (range 14) 17622 | -3/Research | Watched by a mysterious "MATRIX" hacker 17725 | -3/Research | Research terminal network offline 17734 | -3/Research | Spotted B-86 Titan 17800 | -3/Research | Build established: Hacker-Sprinter 17951 | -3/Research | Entered another Research area 17951 | -2/Research | Warlord forces began assault on 0b10 17951 | -2/Research | Evolved 2 slots: Utility x2 17959 | -2/Research | Identified exit to Access 17976 | -2/Research | Distinguished unit "Vikings" dispatched to help 18038 | -2/Research | Discovered new exit (range 3) 18039 | -2/Research | Identified exit to Quarantine 18059 | -2/Research | Found Adv. Force Booster 18061 | -2/Research | Research machine network offline 18523 | -2/Research | Borebot progress halted 18672 | -2/Research | Met up with Warlord 18764 | -2/Research | Borebot progress halted 18846 | -2/Research | Borebot progress halted 18952 | -2/Research | Warlord invited to help at Command 18952 | -2/Research | Given Cave Seal Controls access code 18976 | -2/Research | Spotted Executioner 18979 | -2/Research | Found Prototype Processor 18979 | -2/Research | Identified Exp. Core Analyzer 18984 | -2/Research | Entered Access 18984 | -1/Access | Evolved 2 slots: Utility x2 19049 | -1/Access | Identified exit to Surface 19071 | -1/Access | Identified exit to Command 19154 | -1/Access | Garrison activated, responded to threat 19198 | -1/Access | Spotted B-99 Colossus 19203 | -1/Access | Spotted B-99 Colossus 19203 | -1/Access | Spotted B-99 Colossus 19213 | -1/Access | Entered Command 19230 | -1/Command | Enhanced Grunt warped into view, answering call for help 19238 | -1/Command | Enhanced Grunt warped into view, answering call for help 19249 | -1/Command | Spotted B-99 Colossus 19299 | -1/Command | Lost 3 allies 19316 | -1/Command | Spotted B-99 Colossus 19330 | -1/Command | Imp. System Shield fried by hacking feedback 19361 | -1/Command | Lost 4 parts (1n3u) 19417 | -1/Command | Crushed by falling debris 19418 | -1/Command | System corruption reached 10% 19456 | -1/Command | Spotted Executioner 19456 | -1/Command | Spotted Executioner 19456 | -1/Command | Spotted Striker 19456 | -1/Command | Spotted Alpha 7 19456 | -1/Command | Spotted Executioner 19456 | -1/Command | Spotted Executioner 19456 | -1/Command | Spotted Striker 19456 | -1/Command | Spotted Alpha 7 19458 | -1/Command | Spotted B-99 Colossus 19513 | -1/Command | Released all parts (2) 19516 | -1/Command | Core integrity fell below 50% 19519 | -1/Command | Core integrity fell below 20% 19520 | -1/Command | Destroyed by G-73 Enforcer with Heavy Laser Last Messages --------------- 19512_ Slug penetrates Wall. 19512_ Penetrated by Slug. 19512_ Q-thruster+ destroyed. 19513_ Cld. Impulse Thruster severed. 19513_ Released Exp. Optical Array. 19513_ Released Med. Storage Unit. 19514_ Penetrated by Slug. 19516_ C-57 Dissector destroyed. 19516_ Penetrated by Slug. 19517_ S-43 Plague destroyed. 19517_ Slug penetrates Quantum Router. 19517_ Penetrated by Slug. 19518_ Slug penetrates Wall. 19518_ Penetrated by Slug. 19518_ Slug penetrates R-10 Processor. 19518_ Slug penetrates Wall. 19518_ Penetrated by Slug. 19518_ Slug penetrates Wall. 19519_ Penetrated by Slug. 19520_ R-10 Processor collects Dual-blade Saw. Map ----- +----------------------------------------------------+ | ?????????#"" # + * #????????? | | ?????????### "" # # #????????? | | ???????????# """" = # # #????????? | | ???????????# """" # # * #????????? | | ???????????# "" # # #????????? | | ???????????# # + "" #????????? | | ???????????# # # """" +????????? | | ???????????# ### ## """" #????????? | | ???????????#######+"###?# ## "" #????????? | | ?????????????????# " ##?# ## #????????? | | ?????????????????# """#?# ## ! #????????? | | ?????????????????# # #?# ###############????????? | | ???????????????### # ### ######?????????????????? | | ???????????????# ##########????????? | | ???????????????# ???? | | ???????????????# ############??????? | | ???????????????# k p #?????????????????? | | ?????????####### 7 #?????????????????? | | ?????????+ % g ###?????????????????? | | ?????????+ BB #???????????????????? | | ?????????+ 7BB #???????????????????? | | ?????????+ #???????????????????? | | ?????????+ #???????????????????? | | ?????????####### ##############?????????? | | ???????????????# g # #?????????? | | ???????????????# g @# #?????????? | | ???????????????# # #?????????? | | ???????????????# g c; "" #?????????? | | ???????????????# # """" ""????????? | | ???????????????# ; """" """#??????? | | ???????????????# h c "" T"#??????? | | ???????????????# c """#??????? | | ???????????????# h / "" #??????? | | ???????????????### ## ####??????? | | ???????????####### |! sR## +?????????? | | ?????????### #||! ## #?????????? | | ?????????# + #|!! ss%#####+##+######?????????? | | ?????????# # # sss=## = ###########???? | | ?????????# # # s% p## # #???? | | ?????????# # # s ] ## " #???? | | ?????????# # # sp p ## # """" #???? | | ???????### # #sssss! #########+# """" #???? | | ???????# # / sp # """" #???? | | ???????# # # + """" #???? | | ???????# # # #######+### #???? | | ???????# # # #???? ## #???? | | ???????# # #?? ####"" ""###???? | | ???????# ! ## # #""T""#?????? | | ???????# ! ## # # """ #?????? | | ???????# =%* ## * # #######?????? | +----------------------------------------------------+ Best States ------------- Heat Dissipation 97 Coolant Potential 100 Energy Generation 55 Energy Capacity 700 Matter Stores 300 Matter Capacity 300 Sight Range 23 Terrain Scan Density 135 ECM Strength 2 Jamming Range 16 Cloak Strength 4 Armor Coverage 800 Core Shielding 30 Weapon Cycling 15 Melee Speed Boost 20 Phase Shifting 15 Evasion (%) 92 Targeting Accuracy 8 Melee Accuracy 24 Target Analysis 6 Core Analysis 8 Armor Integrity Analysis 50 Recoil Reduction 2 Offensive Hacking 24 Defensive Hacking 16 Item Schematics ----------------- Component Analysis Suite | -7/Zion | Archive EM Shield | -7/Zion | Archive Hvy. Pick | -7/Zion | Archive Magnetic Acceleration Cannon | -7/Zion | Archive Gravmag System | -7/Zion | Archive Variable Charge Gun | -7/Zion | Archive Imp. Trap Scanner | -7/Zion | Archive Imp. Deuterium Engine | -7/Zion | Archive Imp. Plasma Cutter | -7/Zion | Archive Shock Absorption System | -7/Zion | Archive Hvy. Plasma Cannon | -7/Zion | Archive Cld. Plasma Cannon | -6/Factory | Scanalyzed Arm. Wheel | -6/Factory | Scanalyzed Exp. Targeting Computer | -6/Factory | Scanalyzed Cld. Phase Cannon | -3/Research | Scanalyzed Cld. Field Propulsion Drive | -3/Research | Scanalyzed Robot Schematics ------------------ A-02 Transporter | -7/Zion | Archive Y-45 Defender | -7/Zion | Archive K-01 Serf | -7/Zion | Archive T-07 Excavator | -6/Extension | Hacked Fabricated ------------ K-01 Serf | x4 | -4/Armory | Preloaded Cld. Plasma Cannon | x1 | -3/Research Repaired ---------- Cld. Nuclear Pulse Thruster | 30% | -3/Research Studied --------- Magnetic Acceleration Cannon | -6/Factory | Hacked Arm. Wheel | -6/Factory | Hacked Wheel | -6/Factory | Hacked Imp. Grenade Launcher | -6/Factory | Hacked Arm. Huge Wheel | -6/Factory | Hacked Plasma Cannon | -6/Factory | Hacked Com. Wheel | -6/Factory | Hacked Thunder Leg | -4/Factory | Hacked Myomer Leg | -4/Factory | Hacked Q-thruster | -3/Research | Hacked Field Propulsion Array | -3/Research | Hacked Force Lance | -3/Research | Hacked Particle Reactor | -3/Research | Hacked Impulse Thruster Array | -1/Access | Hacked Adv. Datajack | -1/Access | Hacked Alien Tech Used ----------------- None Achievements -------------- Hackathon Speed Demon Supersonic Treasure Hunter Whoosh! Challenges ------------ None Game ------ Seed RagnarokStructuralConstruct Manual? 0 Play Time 04:56:00 Cumulative 342.4 hours Start 2026.08.28 @ 22:56:29 End 2026.08.29 @ 22:28:49 Sessions 13 Manual Loads 0 Difficulty Rogue Special Mode None Game No. 261 Rogue 252 Adventurer 9 Explorer 0 Win Type - Total 4 Types 3/0/0/1/0/0/0/0/0/0 Lore% 87 Gallery% 72 Achievement% 52 Wizard Run 0 Options --------- Layout 1 ASCII 0 Keyboard 0 Movement Numpad Keybinds 0 Fullscreen 1 Font 24/Smallcaps Map View 50x35 Zoom Use 0% Tactical HUD 1 Map Filters NONE Filters NONE Steam 1 RUN: 8081cfc6-ee7c-4605-847b-557fcb9b3798